Workbook

Sheet Sheet1
A1: 1 | B1: 2 | C1: 3 | D1: 4 | E1: 5 | F1: 6 | G1: 7 | H1: 8 | I1: 9 | J1: 10 | K1: 11 | L1: 12 | M1: 13 | N1: 14 | O1: 15
X2: ='نقدية فيبر'!$K$2000 -> 142
A3: عملاء الفيبر | C3: عملاء البلاستيك | E3: موردين الفيبر | G3: موردين البلاستيك | I3: البنوك | K3: بنوك الشركة | M3: اسم المندوب | O3: حالة الشيك | Q3: اسماء الموظفين | S3: الاجمالى الكلى فبير | U3: الاجمالى الكلى البلاستيك | X3: ='نقدية بلاستيك'!$K$2000 -> 30893.5
A4: لاغى | B4: 1 | C4: لاغى | E4: لاغى | G4: لاغى | I4: HSBC | K4: بنك الامارات دبى NBD | M4: محمد خالد | O4: مؤجل | R4: نقدية | S4: ='نقدية فيبر'!$K$2000 -> 142 | X4: =SUM(X2:X3) -> 31035.5 | AL4: Application.Goto Reference:="R2001C17"
A5: الاسكندرية لتوزيع الكهرباء | B5: 2 | C5: ارت فيرت - حسين هاشم | E5: المغاورى | G5: عهدة م / تامر | I5: الاهلى القطرى (QNB) | K5: بنك الامارات دبى NBD (وطنية) | M5: احمد محمود | O5: تحت التحصيل | R5: تحت | S5: ='شيكات فيبر'!$Q$2001 -> 252520.3 | AL5: ActiveCell.FormulaR1C1 = "=SUM(R[-1995]C:R[-1]C)"
A6: المالية و الصناعية | B6: 3 | C6: اسكندرية لصناعة الزجاج | E6: جارى صاحب المنشاةء | G6: شزى جرافيك | I6: الامارات دبى الوطنى-NBD | K6: بنك المصرى الخليجى EGB | M6: عادل عبد العزيز | O6: محصل | R6: مؤجلة | S6: ='شيكات فيبر'!$AD$2001 -> 8892
A7: جارى بلاستيك | B7: 4 | C7: اسكندرية للادوية | E7: بنك ابو العباس | G7: الحسين | I7: CIB | K7: بنك الاستثمار العربى | M7: محمد قاسم | O7: مرتد | R7: مرتدة | S7: ='شيكات فيبر'!$AR$2001 -> 0
A8: سداد سلف العاملين | B8: 5 | C8: اكسبريس | E8: م/ احمد شوقى | G8: القادسية | I8: CITI | K8: بنك البركة | M8: اسلام | O8: يصرف نقدا | R8: رصيد البنك | S8: ='كشف بنك '!$L$1998 -> 29990 | AL8: Application.Goto Reference:="R2001C30"
A9: الشركة المصرية للتجارة | B9: 6 | C9: الاخوه العرب | E9: جارى بلاستيك | G9: الاخوة العرب | I9: الاهلى المصرى | K9: المصرف المتحد | M9: الحسن الباجورى | O9: ايداع نقدى | R9: الاجمالى | S9: =SUM(S4:S8) -> 291544.3 | AL9: ActiveCell.FormulaR1C1 = "=SUM(R[-1995]C:R[-1]C)"
A10: ايرادات اخرى يومية | B10: 7 | C10: الاسكندرية للبناء | E10: شركة تراست | G10: بنك الاستثمار العربى | I10: كريدى اجريكول | M10: على حسن
A11: شركة ابوقير للاسمدة | B11: 8 | C11: البرج | E11: ثروت محمد السيد | G11: ثروت محمد السيد | I11: القاهرة | M11: شيرين
A12: شركة السرايا انتربليد | B12: 9 | C12: الجرس | E12: مرتبات مكتب الفيبر | G12: المغاورى | I12: الاسكندرية | M12: شريف
A13: سلف مؤقتة | B13: 10 | C13: الحسين | E13: طارق سعد | G13: محمد ممدوح يوسف | I13: ابوظبى | M13: المكتب
A14: رويال | B14: 11 | C14: الشرق للمواد الكيماوية اورنيت | E14: الطباخ | G14: محمود حسنى عبد الغنى سليمان | I14: البركة | M14: مصنع الفيبر
A15: HTCللمكرونة | B15: 12 | C15: الكان | E15: صندوق اعانات الطوارىء للعمال | G15: اشيلية لخدمات الطباعة | I15: العربى الافريقى | M15: مصنع البلاستيك
A16: بيرميدز | B16: 13 | C16: المصرية السويسرية سيسك | E16: سلف مؤقتة | G16: جنرال سيلندرز | I16: باركليز | M16: ميدل ايست
A17: سرحان للصلب | B17: 14 | C17: النرويجية | E17: عمرو للاستراد | G17: الاسكندرية لصناعة البوليمر | I17: بلوم مصر | M17: اى جى اكسبريس
A18: رمضان شعبان | B18: 15 | C18: الهلال | E18: الاسكندرية لتوزيع الكهرباء | G18: عبد الله | I18: مصر | M18: م / شريف
A19: بنك الامارات NBD | B19: 16 | C19: الوطنية للمنسوجات | E19: سلفة / محمد قاسم | G19: سلف مؤقتة | I19: فيصل الاسلامى | M19: كارم
A20: اباظة | B20: 17 | C20: ام سى اى | E20: شركة مصر لصناعة الكيماويات | G20: سلفة / محمد رمضان | I20: بنك الاتحاد الوطنى مصر | M20: فرج
A21: ثروت محمد السيد | B21: 18 | C21: انكانا لصناعة الاحبار | E21: معاش م / خالد | G21: الايمان لوجيستك | I21: المصرى للتنمية الصادرات
A22: عهدة م / احمد شوقى | B22: 19 | C22: ايرادات اخرى | E22: انور | G22: الحسين | I22: قناة السويس
A23: سداد سلف الموطفين بالمكتب | B23: 20 | C23: ايزى سويت | G23: ببب | I23: الخليج
A24: شركة الفادى | C24: ايفرجرو | G24: بنك الامارات | I24: المصرى الخليجى
A25: سلفة رمضان | C25: ايفرجرو السادات | G25: اسكندرية لصناعة الزجاج | I25: بنك الاسكان و التعمير
A26: شيرين | C26: ايليت | G26: جارى م / خالد | I26: التنمية الصناعية و العمال مصر
A27: شركة الفادى | C27: باسيف | G27: شركة النحاس المصرية | I27: المركزى المصرى
A28: حديد عز | C28: بروكيم | G28: جارى كريم | I28: الكويت الوطنى
A29: فارما اوفرسيز | C29: بريمكس | G29: الفاروق | I29: المصرف المتحد
A30: البتروكيماويات المصرية | C30: بنك الاستثمار العربى | G30: سلفة / اميرة عبدة | I30: بيريوس-مصر
A31: شركة حسن حسنى للمقاولات | C31: بنك الامارت | G31: نيو سمارت | I31: الاهلى المتحد
A32: رد عهدة المغاورى | C32: بنك المصرى الخليجى | G32: السويدى | I32: عودة
A33: بيع براميل | C33: بينرا | G33: جارى م / شريف | I33: الاهلى الكويتى- مصر
A34: بنك الوطنية | C34: ثرى ستار | G34: انكانا لصناعة الاحبار | I34: المشرق
A35: فتحى محمود | C35: جارى أ / كريم | G35: شركة صدارة | I35: البنك العربى
A36: شركة طيبة | C36: جارى فيبر | G36: جارى فيبر | I36: التجارى وفا بنك
A37: فندق جدة | C37: جارى م / شريف | G37: سلفة / محمود حمروش | I37: ابوظبى الاول FAB
A38: سلفة / السيد الشافعى | C38: جارى م / خالد | G38: ثروت العامرية | I38: الاهلى اليونانى NBG
A39: اسامة ابو زيد | C39: جريت فودز | G39: ابوللوكيم
A40: الصرف الصحى | C40: د / محمد الطيبى | G40: ابو ريدة
A41: شركة اليكس باك | C41: رد عهدة م / تامر طه | G41: ايميرود ايجيبت
A42: ينك مصر | C42: روبيرد | G42: ايجار المصنع
A43: ايرادات متنوعة | C43: روبيرد خالد
A44: صبرى سليمان الشهاوى | C44: زيوركيم
A45: مستشفى زمزم | C45: سكيب
A46: مارينا لسقالات | C46: سلف مؤقتة
A47: فيلا / يحيى قاسم | C47: سويت جيل
A48: جارى صاحب المنشاءة | C48: سيراميك ارت
A49: سلفة / محمد قاسم | C49: سيراميك الفا
A50: شركة ماس | C50: سيراميك الدولية
A51: شركة الوجه القبلى للكهرباء (الكريمات) | C51: شركة الهدى محمد النجار
A52: ليسيكو | C52: عشرا تكس
A53: م / نيفين | C53: على قماح
A54: د / يحيى عثمان | C54: عملاء بيع هوالك
A55: سلفة / محمد خالد | C55: فارا بروف
A56: عمرو موسى | C56: فور سيزون
A57: مجمع الكرنك | C57: كيم ارت
A58: مصر الخليج | C58: كينج بلاست
C59: ليسيكو
C60: ميدو للدهانات
C61: ثروت العامرية
C62: د / شريف الطيبى
C63: الجامعة الالمانية
C64: لورد
C65: ابو ريدة
C66: كابسى
C67: بروتال للبويات
C68: شركة النحاس المصرية
C69: كومبتكس

Sheet شيكات فيبر
N2: اسم العميل | O2: رقم الاذن | P2: تاريخ الاستحقاق | Q2: القيمة | R2: رقم الشيك | S2: تاريخ الاستلام | T2: اسم البنك | U2: حالة الشيك | V2: اسم المندوب | W2: ملاحظات | X2: بنك التحصيل | AA2: اسم العميل | AB2: رقم الاذن | AC2: تاريخ الاستحقاق | AD2: القيمة | AE2: رقم الشيك | AF2: تاريخ الاستلام | AG2: اسم البنك | AH2: حالة الشيك | AI2: اسم المندوب | AJ2: ملاحظات | AK2: بنك التحصيل | AO2: اسم العميل | AP2: رقم الاذن | AQ2: تاريخ الاستحقاق | AR2: القيمة | AS2: رقم الشيك | AT2: تاريخ الاستلام | AU2: اسم البنك | AV2: حالة الشيك | AW2: اسم المندوب | AX2: ملاحظات | AY2: بنك التحصيل
U3: تحت التحصيل | AH3: مؤجل | AV3: مرتدة
A5: اسم العميل | B5: رقم الاذن | C5: تاريخ الاستحقاق | D5: القيمة | E5: رقم الشيك | F5: تاريخ الاستلام | G5: اسم البنك | H5: حالة الشيك | I5: اسم المندوب | J5: ملاحظات | K5: بنك التحصيل | N5: اسم العميل | O5: رقم الاذن | P5: تاريخ الاستحقاق | Q5: القيمة | R5: رقم الشيك | S5: تاريخ الاستلام | T5: اسم البنك | U5: حالة الشيك | V5: اسم المندوب | W5: ملاحظات | X5: بنك التحصيل | AA5: اسم العميل | AB5: رقم الاذن | AC5: تاريخ الاستحقاق | AD5: القيمة | AE5: رقم الشيك | AF5: تاريخ الاستلام | AG5: اسم البنك | AH5: حالة الشيك | AI5: اسم المندوب | AJ5: ملاحظات | AK5: بنك التحصيل | AO5: اسم العميل | AP5: رقم الاذن | AQ5: تاريخ الاستحقاق | AR5: القيمة | AS5: رقم الشيك | AT5: تاريخ الاستلام | AU5: اسم البنك | AV5: حالة الشيك | AW5: اسم المندوب | AX5: ملاحظات | AY5: بنك التحصيل
A6: الاسكندرية لتوزيع الكهرباء | B6: 2418 | C6: 2019-01-08 | D6: 37767.5 | E6: 18101100173 | F6: 2019-01-09 | G6: الاسكندرية | H6: محصل | I6: عادل عبد العزيز | J6: امر توريد 2019/2018/132توريد100علبة كهرباء | K6: بنك الامارات دبى NBD | N6: شركة الوجه القبلى للكهرباء (الكريمات) | O6: 2424 | P6: 13-12-2018 | Q6: 3000 | R6: 35623507 | S6: 2019-04-03 | T6: الاهلى القطرى (QNB) | U6: تحت التحصيل | V6: احمد محمود | W6: رد تامين ابتدائى | X6: بنك الامارات دبى NBD | AA6: شركة ماس | AB6: 2423 | AC6: 2019-04-11 | AD6: 8892 | AE6: 23151511 | AF6: 2019-02-03 | AG6: كريدى اجريكول | AH6: مؤجل | AI6: محمد قاسم | AJ6: حساب توريد فلانشات + اصلاح | AK6: بنك الامارات دبى NBD | AL6: =IFERROR(DATEDIF(TODAY(),AC6,"d"),"") -> 29
A7: حديد عز | B7: 2419 | C7: 28/1/2019 | D7: 43834.08 | E7: 181127003272 | F7: 30/1/2019 | G7: الاسكندرية | H7: محصل | I7: احمد محمود | J7: من تحت حساب المديونية | K7: بنك الامارات دبى NBD | N7: ليسيكو | O7: 2425 | P7: 2019-03-02 | Q7: 15469.8 | R7: 1663583 | S7: 2019-04-03 | T7: ابوظبى الاول FAB | U7: تحت التحصيل | V7: على حسن | W7: خامات وطنية | X7: بنك الامارات دبى NBD (وطنية)
A8: فارما اوفرسيز | B8: 2420 | C8: 23/1/2019 | D8: 92500 | E8: 4362091 | F8: 30/1/2019 | G8: العربى الافريقى | H8: محصل | I8: محمد قاسم | J8: من تحت حساب المديونية | K8: بنك الامارات دبى NBD | N8: ليسيكو | O8: 2426 | P8: 2019-03-03 | Q8: 15133.5 | R8: 504029229 | S8: 2019-06-03 | T8: CIB | U8: تحت التحصيل | V8: على حسن | W8: خامات وطنية | X8: بنك الامارات دبى NBD (وطنية)
A9: البتروكيماويات المصرية | B9: 2421 | C9: 23/1/2019 | D9: 21470 | E9: 17000064692 | F9: 30/1/2019 | G9: الاهلى المصرى | H9: محصل | I9: عادل عبد العزيز | J9: شيك وطنية خامات | K9: بنك الامارات دبى NBD (وطنية) | N9: الاسكندرية لتوزيع الكهرباء | O9: 2427 | P9: 2019-03-06 | Q9: 218917 | R9: 44050323 | S9: 2019-03-09 | T9: التنمية الصناعية و العمال مصر | U9: تحت التحصيل | V9: عادل عبد العزيز | W9: توريد 400علب
A10: شركة حسن حسنى للمقاولات | B10: 2422 | C10: 2019-02-10 | D10: 50000 | F10: 2019-02-10 | G10: الامارات دبى الوطنى-NBD | H10: ايداع نقدى | J10: ايدع فى بنك الامارات دبى | K10: بنك الامارات دبى NBD
A11: شركة ماس | B11: 2423 | C11: 2019-04-11 | D11: 8892 | E11: 23151511 | F11: 2019-02-03 | G11: كريدى اجريكول | H11: مؤجل | I11: محمد قاسم | J11: حساب توريد فلانشات + اصلاح | K11: بنك الامارات دبى NBD
A12: شركة الوجه القبلى للكهرباء (الكريمات) | B12: 2424 | C12: 13-12-2018 | D12: 3000 | E12: 35623507 | F12: 2019-04-03 | G12: الاهلى القطرى (QNB) | H12: تحت التحصيل | I12: احمد محمود | J12: رد تامين ابتدائى | K12: بنك الامارات دبى NBD
A13: ليسيكو | B13: 2425 | C13: 2019-03-02 | D13: 15469.8 | E13: 1663583 | F13: 2019-04-03 | G13: ابوظبى الاول FAB | H13: تحت التحصيل | I13: على حسن | J13: خامات وطنية | K13: بنك الامارات دبى NBD (وطنية)
A14: ليسيكو | B14: 2426 | C14: 2019-03-03 | D14: 15133.5 | E14: 504029229 | F14: 2019-06-03 | G14: CIB | H14: تحت التحصيل | I14: على حسن | J14: خامات وطنية | K14: بنك الامارات دبى NBD (وطنية)
A15: الاسكندرية لتوزيع الكهرباء | B15: 2427 | C15: 2019-03-06 | D15: 218917 | E15: 44050323 | F15: 2019-03-09 | G15: التنمية الصناعية و العمال مصر | H15: تحت التحصيل | I15: عادل عبد العزيز | J15: توريد 400علب
Q2001: =SUM(Q6:Q2000) -> 252520.3 | AD2001: =SUM(AD6:AD2000) -> 8892 | AR2001: =SUM(AR6:AR2000) -> 0

Sheet شيكات بلاستيك
M2: اسم العميل | N2: رقم الاذن | O2: تاريخ الاستحقاق | P2: القيمة | Q2: رقم الشيك | R2: تاريخ الاستلام | S2: اسم البنك | T2: حالة الشيك | U2: اسم المندوب | V2: ملاحظات | W2: بنك التحصيل | Z2: اسم العميل | AA2: رقم الاذن | AB2: تاريخ الاستحقاق | AC2: القيمة | AD2: رقم الشيك | AE2: تاريخ الاستلام | AF2: اسم البنك | AG2: حالة الشيك | AH2: اسم المندوب | AI2: ملاحظات | AJ2: بنك التحصيل
T3: تحت التحصيل | AG3: مؤجل
AL4: =SUM(AC6:AC40) -> 1702344.05
A5: اسم العميل | B5: رقم الاذن | C5: تاريخ الاستحقاق | D5: القيمة | E5: رقم الشيك | F5: تاريخ الاستلام | G5: اسم البنك | H5: حالة الشيك | I5: اسم المندوب | J5: ملاحظات | K5: بنك التحصيل | M5: اسم العميل | N5: رقم الاذن | O5: تاريخ الاستحقاق | P5: القيمة | Q5: رقم الشيك | R5: تاريخ الاستلام | S5: اسم البنك | T5: حالة الشيك | U5: اسم المندوب | V5: ملاحظات | W5: بنك التحصيل | Z5: اسم العميل | AA5: رقم الاذن | AB5: تاريخ الاستحقاق | AC5: القيمة | AD5: رقم الشيك | AE5: تاريخ الاستلام | AF5: اسم البنك | AG5: حالة الشيك | AH5: اسم المندوب | AI5: ملاحظات | AJ5: بنك التحصيل | AK5: لايام
A6: ايفرجرو | B6: 5851 | C6: 26/12/2018 | D6: 250000 | E6: 4141700051269 | F6: 27/12/2018 | G6: الاهلى المصرى | H6: تحت التحصيل | I6: حسن الباجورى | J6: سداد جزء من المديونية | M6: ايفرجرو | N6: 5851 | O6: 26/12/2018 | P6: 250000 | Q6: 4141700051269 | R6: 27/12/2018 | S6: الاهلى المصرى | T6: تحت التحصيل | U6: حسن الباجورى | V6: سداد جزء من المديونية | Z6: سكيب | AA6: 2948 | AB6: 2019-03-14 | AC6: 132741.6 | AD6: 34760482 | AE6: 2019-03-10 | AF6: الاهلى القطرى (QNB) | AG6: مؤجل | AH6: الحسن الباجورى | AI6: سداد جزء من المديونية | AK6: =IFERROR(DATEDIF(TODAY(),AB6,"d"),"") -> 1
A7: عشرا تكس | B7: 5852 | C7: 29/12/2018 | D7: 49753.5 | E7: 659453 | F7: 29/12/2018 | G7: HSBC | H7: يصرف نقدا | I7: حسن الباجورى | J7: فاتورة رقم4558 | K7: بنك الاستثمار العربى | M7: بينرا | N7: 5856 | O7: 2019-05-03 | P7: 45000 | Q7: 504509770 | R7: 30/12/2018 | S7: CIB | T7: تحت التحصيل | U7: على حسن | V7: سداد جزء من المديونية | Z7: سيراميك ارت | AA7: 2915 | AB7: 15/3/2019 | AC7: 45586.29 | AD7: 37763008 | AE7: 18/2/2019 | AF7: الاهلى القطرى (QNB) | AG7: مؤجل | AH7: المكتب | AI7: سداد جزء من المديونية | AK7: 2
A8: بينرا | B8: 5853 | C8: 18/1/2019 | D8: 41000 | E8: 504509772 | F8: 30/12/2018 | G8: CIB | H8: محصل | I8: على حسن | J8: سداد جزء من المديونية | M8: بينرا | N8: 5857 | O8: 2019-12-03 | P8: 45000 | Q8: 504509771 | R8: 30/12/2018 | S8: CIB | T8: تحت التحصيل | U8: على حسن | V8: سداد جزء من المديونية | Z8: بينرا | AA8: 2897 | AB8: 17/3/2019 | AC8: 50000 | AD8: 505146144 | AE8: 31/1/2019 | AF8: CIB | AG8: مؤجل | AH8: على حسن | AI8: سداد جزء من المديونية | AK8: 4
A9: بينرا | B9: 5854 | C9: 2019-07-02 | D9: 45000 | E9: 504509768 | F9: 30/12/2018 | G9: CIB | H9: محصل | I9: على حسن | J9: سداد جزء من المديونية | M9: ايليت | N9: 5858 | O9: 23/12/2018 | P9: 42625 | Q9: 2401777 | R9: 31/12/2018 | S9: كريدى اجريكول | T9: تحت التحصيل | V9: فاتورة رقم 4628و 4631 | Z9: ايفرجرو السادات | AA9: 2891 | AB9: 18/3/2019 | AC9: 474240 | AD9: 171401 | AE9: 29/1/2019 | AF9: HSBC | AG9: مؤجل | AH9: المكتب | AI9: سداد جزء من المديونية | AK9: 5
A10: بينرا | B10: 5855 | C10: 22/2/2019 | D10: 45000 | E10: 504509769 | F10: 30-12-2019 | G10: CIB | H10: محصل | I10: على حسن | J10: سداد جزء من المدوينة | M10: بروكيم | N10: 5860 | O10: 2019-08-01 | P10: 2827.2 | Q10: 38123163 | R10: 31/12/2018 | S10: الاهلى القطرى (QNB) | T10: تحت التحصيل | U10: حسن الباجورى | V10: فاتورة رقم 4617 | Z10: جريت فودز | AA10: 2924 | AB10: 20/3/2019 | AC10: 75841.92 | AD10: 47 | AE10: 19/2/2019 | AF10: ابوظبى | AG10: مؤجل | AH10: المكتب | AI10: سداد جزء من المديونية | AK10: 7
A11: بينرا | B11: 5856 | C11: 2019-05-03 | D11: 45000 | E11: 504509770 | F11: 30/12/2018 | G11: CIB | H11: تحت التحصيل | I11: على حسن | J11: سداد جزء من المديونية | M11: ايفرجرو | N11: 2890 | O11: 20/2/2019 | P11: 13469.1 | Q11: 171402 | R11: 29/1/2019 | S11: HSBC | T11: تحت التحصيل | U11: المكتب | V11: سداد جزء من المديونية | Z11: ايفرجرو السادات | AA11: 2931 | AB11: 24/3/2019 | AC11: 56153.59 | AD11: 171474 | AE11: 26/2/2019 | AF11: HSBC | AG11: مؤجل | AH11: ميدل ايست | AI11: سداد جزء من المديونية | AK11: 11
A12: بينرا | B12: 5857 | C12: 2019-12-03 | D12: 45000 | E12: 504509771 | F12: 30/12/2018 | G12: CIB | H12: تحت التحصيل | I12: على حسن | J12: سداد جزء من المديونية | M12: ايزى سويت | N12: 2900 | O12: 24/2/2019 | P12: 40629.6 | Q12: 30085 | R12: 31/1/2019 | S12: التجارى وفا بنك | T12: تحت التحصيل | U12: حسن الباجورى | V12: سداد جزء من المديونية | Z12: سيراميك الفا | AA12: 2953 | AB12: 2019-03-25 | AC12: 14104.65 | AD12: 44371512 | AE12: 2019-03-13 | AF12: المصرى للتنمية الصادرات | AG12: مؤجل | AH12: ميدل ايست | AI12: سداد جزء من المديونية | AK12: 12
A13: ايليت | B13: 5858 | C13: 23/12/2018 | D13: 42625 | E13: 2401777 | F13: 31/12/2018 | G13: كريدى اجريكول | H13: تحت التحصيل | J13: فاتورة رقم 4628و 4631 | M13: بروكيم | N13: 2911 | O13: 22/2/2019 | P13: 52039.52 | Q13: 38123237 | R13: 13/2/2019 | S13: الاهلى القطرى (QNB) | T13: تحت التحصيل | U13: حسن الباجورى | V13: سداد جزء من المديونية | Z13: الشرق للمواد الكيماوية اورنيت | AA13: 2909 | AB13: 30/3/2019 | AC13: 34345 | AD13: 6182 | AE13: 13/2/2019 | AF13: التنمية الصناعية و العمال مصر | AG13: مؤجل | AH13: المكتب | AI13: سداد جزء من المديونية | AK13: 17
A14: ايليت | B14: 5859 | C14: 23/12/2018 | J14: لاغى | M14: البرج | N14: 2914 | O14: 18/2/2019 | P14: 55189.2 | Q14: 4104797731 | R14: 17/2/2019 | S14: الكويت الوطنى | T14: تحت التحصيل | U14: حسن الباجورى | V14: سداد جزء من المديونية | Z14: ام سى اى | AA14: 2916 | AB14: 31/3/2019 | AC14: 65451 | AD14: 51266443 | AE14: 18/2/2019 | AF14: مصر | AG14: مؤجل | AH14: المكتب | AI14: سداد جزء من المديونية | AK14: 18
A15: بروكيم | B15: 5860 | C15: 2019-08-01 | D15: 2827.2 | E15: 38123163 | F15: 31/12/2018 | G15: الاهلى القطرى (QNB) | H15: تحت التحصيل | I15: حسن الباجورى | J15: فاتورة رقم 4617 | M15: ايزى سويت | N15: 2917 | O15: 14/2/2019 | P15: 20000 | Q15: 1419 | R15: 18/2/2019 | S15: المصرى للتنمية الصادرات | T15: تحت التحصيل | U15: كارم | V15: سداد جزء من المديونية | Z15: ايفرجرو السادات | AA15: 2892 | AB15: 2019-04-01 | AC15: 503880 | AD15: 171403 | AE15: 29/1/2019 | AF15: HSBC | AG15: مؤجل | AH15: المكتب | AI15: سداد جزء من المديونية | AK15: 19
A16: بروكيم | B16: 5861 | C16: 2019-08-01 | D16: 23253.72 | E16: 38123164 | F16: 31/12/2018 | G16: الاهلى القطرى (QNB) | H16: محصل | I16: حسن الباجورى | J16: باقى فاتورة 4617 | M16: ايزى سويت | N16: 2918 | O16: 14/2/2019 | P16: 30000 | Q16: 1366 | R16: 18/2/2019 | S16: التنمية الصناعية و العمال مصر | T16: تحت التحصيل | U16: كارم | V16: سداد جزء من المديونية | Z16: بينرا | AA16: 2898 | AB16: 2019-04-04 | AC16: 50000 | AD16: 505146145 | AE16: 31/1/2019 | AF16: CIB | AG16: مؤجل | AH16: على حسن | AI16: سداد جزء من المديونية | AK16: 22
A17: الكان | B17: 5862 | C17: 16/12/2018 | D17: 15500 | E17: 38123660 | F17: 31/12/2018 | G17: الاهلى القطرى (QNB) | H17: محصل | I17: حسن الباجورى | J17: سداد جزء من المديونية | M17: ايزى سويت | N17: 2919 | O17: 19/2/2019 | P17: 33099 | Q17: 1367 | R17: 18/2/2019 | S17: التنمية الصناعية و العمال مصر | T17: تحت التحصيل | U17: كارم | V17: سداد جزء من المديونية | Z17: بينرا | AA17: 2951 | AB17: 2019-04-08 | AC17: 50000 | AD17: 505693859 | AE17: 2019-03-12 | AF17: CIB | AG17: مؤجل | AH17: المكتب | AI17: سداد جزء من المديونية | AK17: 26
A18: ثرى ستار | B18: 5863 | C18: 2019-01-01 | D18: 29504.6 | E18: 38142390 | F18: 31/12/2018 | G18: الاهلى القطرى (QNB) | H18: محصل | I18: حسن الباجورى | J18: سداد جزء من المديونية | M18: ايزى سويت | N18: 2920 | O18: 21/2/2019 | P18: 25075.03 | Q18: 1420 | R18: 18/2/2019 | S18: التنمية الصناعية و العمال مصر | T18: تحت التحصيل | U18: كارم | V18: سداد جزء من المديونية | Z18: بينرا | AA18: 2934 | AB18: 13-4-2019 | AC18: 50000 | AD18: 505146126 | AE18: 27/2/2019 | AF18: CIB | AG18: مؤجل | AH18: على حسن | AI18: سداد جزء من المديونية | AK18: 31
A19: ثرى ستار | B19: 5864 | C19: 2019-10-01 | D19: 13383.5 | E19: 38142391 | F19: 31/12/2018 | G19: الاهلى القطرى (QNB) | H19: محصل | I19: حسن الباجورى | J19: سداد جزء من المديونية | M19: فور سيزون | N19: 2921 | O19: 2019-02-11 | P19: 10070.12 | Q19: 121038356 | R19: 19/2/2019 | S19: ابوظبى الاول FAB | T19: تحت التحصيل | U19: المكتب | V19: سداد جزء من المديونية | Z19: بينرا | AA19: 2952 | AB19: 2019-04-23 | AC19: 50000 | AD19: 505693860 | AE19: 2019-03-12 | AF19: CIB | AG19: مؤجل | AH19: المكتب | AI19: سداد جزء من المديونية | AK19: 41
A20: اسكندرية للادوية | B20: 5865 | C20: 29/12/2018 | D20: 20698 | E20: 50225721 | F20: 31/12/2018 | G20: مصر | H20: محصل | I20: المكتب | J20: سداد جزء من المديونية | M20: زيوركيم | N20: 2922 | O20: 15/2/2019 | P20: 18713.1 | Q20: 21717000057300 | R20: 19/2/2019 | S20: الاهلى المصرى | T20: تحت التحصيل | U20: المكتب | V20: سداد جزء من المديونية | Z20: بينرا | AA20: 2933 | AB20: 26/4/2019 | AC20: 50000 | AD20: 505146125 | AE20: 27/2/2019 | AF20: CIB | AG20: مؤجل | AH20: على حسن | AI20: سداد جزء من المديونية | AK20: 44
A21: البرج | B21: 5866 | C21: 2019-07-01 | D21: 75240 | E21: 10100202413790 | F21: 43617 | G21: كريدى اجريكول | H21: محصل | I21: المكتب | J21: سداد جزء من المديونية | M21: الهلال | N21: 2925 | O21: 2019-10-03 | P21: 5515.32 | Q21: 3638776 | R21: 20/2/2019 | S21: الاهلى القطرى (QNB) | T21: تحت التحصيل | U21: المكتب | V21: سداد جزء من المديونية
A22: البرج | B22: 2867 | C22: 22/1/2019 | D22: 18057.6 | E22: 410797649 | F22: 43617 | G22: الكويت الوطنى | H22: محصل | I22: كارم | J22: سداد جزء من المديونية | M22: الكان | N22: 2926 | O22: 2019-03-10 | P22: 30000 | Q22: 38123704 | R22: 21/2/2019 | S22: الاهلى القطرى (QNB) | T22: تحت التحصيل | V22: سداد جزء من المديونية
A23: الوطنية للمنسوجات | B23: 2868 | C23: 15/1/2019 | D23: 10000 | E23: 2121700003578 | F23: 43739 | G23: الاهلى المصرى | H23: محصل | I23: المكتب | J23: سداد جزء من المديونية | M23: سكيب | N23: 2930 | O23: 2019-03-11 | P23: 162700.8 | Q23: 34760428 | R23: 25/2/2019 | S23: الاهلى القطرى (QNB) | T23: تحت التحصيل | U23: الحسن الباجورى | V23: سداد جزء من المديونية | W23: بنك المصرى الخليجى
A24: كينج بلاست | B24: 2869 | C24: 2019-05-01 | D24: 19006.08 | E24: 10400027052604 | F24: 43739 | G24: كريدى اجريكول | H24: محصل | I24: المكتب | J24: سداد جزء من المديونية | M24: الكان | N24: 2932 | O24: 2019-08-02 | P24: 9418.5 | Q24: 38123712 | R24: 26/2/2019 | S24: الاهلى القطرى (QNB) | T24: تحت التحصيل | U24: الحسن الباجورى | V24: سداد جزء من المديونية
A25: ايزى سويت | B25: 2870 | C25: 20/12/2018 | D25: 40189.28 | E25: 29498 | F25: 43739 | G25: التجارى وفا بنك | H25: محصل | I25: حسن الباجورى | J25: فاتورة رقم 4483 | M25: ايفرجرو | N25: 2935 | O25: 2019-03-11 | P25: 250000 | Q25: 42749842 | R25: 2019-02-27 | S25: مصر | T25: تحت التحصيل | U25: الحسن الباجورى | V25: سداد جزء من المديونية | W25: بنك المصرى الخليجى
A26: ايفرجرو | B26: 2871 | C26: 16/1/2019 | D26: 500000 | E26: 171302 | F26: 43800 | G26: HSBC | H26: محصل | I26: المكتب | J26: سداد جزء من المديونية | M26: ايفرجرو | N26: 2936 | O26: 2019-03-04 | P26: 250000 | Q26: 52749841 | R26: 2019-02-27 | S26: مصر | T26: تحت التحصيل | U26: الحسن الباجورى | V26: سداد جزء من المديونية | W26: بنك المصرى الخليجى
A27: سكيب | B27: 2872 | C27: 17/1/2019 | D27: 199899 | E27: 34759929 | F27: 14/1/2019 | G27: الاهلى القطرى (QNB) | H27: محصل | I27: المكتب | J27: سداد جزء من المديونية | M27: بروتال للبويات | N27: 2941 | O27: 2019-02-28 | P27: 21732.73 | Q27: 38176738 | R27: 2019-03-04 | S27: الاهلى القطرى (QNB) | T27: تحت التحصيل | U27: الحسن الباجورى | V27: سداد جزء من المديونية | W27: بنك المصرى الخليجى EGB
A28: سويت جيل | B28: 2873 | C28: 30/1/2019 | D28: 62656 | E28: 36701669 | F28: 14/1/2019 | G28: الاهلى القطرى (QNB) | H28: محصل | I28: المكتب | J28: سداد جزء من المديونية | M28: شركة النحاس المصرية | N28: 2947 | O28: 2019-03-02 | P28: 2690.4 | Q28: 17000024564 | R28: 2019-03-06 | S28: الاهلى المصرى | T28: تحت التحصيل | U28: كارم | V28: سداد جزء من المديونية | W28: بنك المصرى الخليجى EGB
A29: ايليت | B29: 2874 | C29: 2019-09-01 | D29: 122357.81 | E29: 100202406711 | F29: 14/1/2019 | G29: كريدى اجريكول | H29: محصل | I29: المكتب | J29: سداد جزء من المديونية | M29: كومبتكس | N29: 2950 | O29: 2019-03-09 | P29: 11325.6 | Q29: 180917006826 | R29: 2019-03-11 | S29: الاسكندرية | T29: تحت التحصيل | U29: الحسن الباجورى | V29: سداد جزء من المديونية
A30: ام سى اى | B30: 2875 | C30: 15/2/2019 | D30: 66624 | E30: 51266198 | F30: 15/1/2019 | G30: مصر | H30: محصل | I30: المكتب | J30: من تحت الحساب | K30: الامارات
A31: الهلال | B31: 2876 | C31: 2019-10-02 | D31: 18797.05 | E31: 36387733 | F31: 16/1/2019 | G31: الاهلى القطرى (QNB) | H31: محصل | I31: المكتب | J31: سداد جزء من المديونية
A32: ليسيكو | B32: 2877 | C32: 15/1/2019 | D32: 83985.55 | E32: 504028699 | F32: 19/1/2019 | G32: CIB | H32: محصل | I32: حسن الباجورى | J32: سداد جزء من المديونية
A33: سكيب | B33: 2878 | C33: 25/1/2019 | D33: 153036.45 | E33: 34760000 | F33: 21/1/2019 | G33: الاهلى القطرى (QNB) | H33: محصل | I33: حسن الباجورى | J33: سداد جزء من المديونية
A34: سكيب | B34: 2879 | C34: 31/1/2019 | D34: 212680.13 | E34: 34760075 | F34: 21/1/2019 | G34: الاهلى القطرى (QNB) | H34: محصل | I34: حسن الباجورى | J34: سداد جزء من المديونية
A35: فور سيزون | B35: 2880 | C35: 13/1/2019 | D35: 3897.5 | E35: 121038085 | F35: 22/1/2019 | G35: ابوظبى | H35: محصل | I35: كارم | J35: سداد جزء من المديونية
A36: الكان | B36: 2881 | C36: 31/12/2018 | D36: 31000 | E36: 38123682 | F36: 22/1/2019 | G36: الاهلى القطرى (QNB) | H36: محصل | I36: المكتب | J36: سداد جزء من المديونية
A37: جريت فوز | B37: 2882 | C37: 14/2/2019 | D37: 37777.32 | E37: 1404402259 | F37: 22/1/2019 | G37: الامارات دبى الوطنى-NBD | H37: محصل | I37: المكتب | J37: سداد جزء من المديونية
A38: بروكيم | B38: 2883 | C38: 31/1/2019 | D38: 38874 | E38: 38123173 | F38: 26/1/2019 | G38: الاهلى القطرى (QNB) | H38: محصل | I38: حسن الباجورى | J38: سداد جزء من المديونية | AK38: =IFERROR(DATEDIF(TODAY(),AB38,"d"),"") -> 
A39: بروكيم | B39: 2884 | C39: 2019-07-02 | D39: 20581.56 | E39: 38123174 | F39: 26/1/2019 | G39: الاهلى القطرى (QNB) | H39: محصل | I39: حسن الباجورى | J39: سداد جزء من المديونية
A40: روبيرد | B40: 2885 | C40: 29/1/2019 | D40: 5810 | E40: 44524811 | F40: 26/1/2019 | G40: المصرى للتنمية الصادرات | H40: محصل | I40: المكتب | J40: سداد جزء من المديونية
A41: ثرى ستار | B41: 2886 | C41: 31/1/2019 | D41: 109571 | E41: 37086453 | F41: 27/1/2019 | G41: الاهلى القطرى (QNB) | H41: محصل | I41: حسن الباجورى | J41: سداد جزء من المديونية
A42: ثرى ستار | B42: 2887 | C42: 28/2/2019 | D42: 100345.6 | E42: 37086454 | F42: 27/1/2019 | G42: الاهلى القطرى (QNB) | H42: محصل | I42: حسن الباجورى | J42: سداد جزء من المديونية
A43: بروكيم | B43: 2888 | C43: 28/1/2019 | D43: 47985 | E43: 38123178 | F43: 28/1/2019 | G43: الاهلى القطرى (QNB) | H43: محصل | I43: حسن الباجورى | J43: سداد جزء من المديونية
A44: روبيرد | B44: 2889 | C44: 17/2/2019 | D44: 40442.5 | E44: 44524822 | F44: 29/1/2019 | G44: المصرى للتنمية الصادرات | H44: محصل | I44: المكتب | J44: سداد جزء من المديونية
A45: ايفرجرو | B45: 2890 | C45: 20/2/2019 | D45: 13469.1 | E45: 171402 | F45: 29/1/2019 | G45: HSBC | H45: تحت التحصيل | I45: المكتب | J45: سداد جزء من المديونية
A46: ايفرجرو السادات | B46: 2891 | C46: 18/3/2019 | D46: 474240 | E46: 171401 | F46: 29/1/2019 | G46: HSBC | H46: مؤجل | I46: المكتب | J46: سداد جزء من المديونية
A47: ايفرجرو السادات | B47: 2892 | C47: 2019-04-01 | D47: 503880 | E47: 171403 | F47: 29/1/2019 | G47: HSBC | H47: مؤجل | I47: المكتب | J47: سداد جزء من المديونية
A48: ايليت | B48: 2893 | C48: 20/1/2019 | D48: 47721.09 | E48: 10100202406731 | F48: 19/1/2019 | G48: كريدى اجريكول | H48: محصل | I48: حسن الباجورى | J48: سداد جزء من المديونية
A49: عشرا تكس | B49: 2894 | C49: 23/1/2019 | D49: 41475 | E49: 656500 | F49: 31/1/2019 | G49: HSBC | H49: محصل | I49: المكتب | J49: سداد جزء من المديونية
A50: بينرا | B50: 2895 | C50: 16/2/2019 | D50: 50000 | E50: 505146142 | F50: 31/1/2019 | G50: CIB | H50: محصل | I50: على حسن | J50: سداد جزء من المديونية
A51: بينرا | B51: 2896 | C51: 26/2/2019 | D51: 50000 | E51: 505146143 | F51: 31/1/2019 | G51: CIB | H51: محصل | I51: على حسن | J51: سداد جزء من المديونية
A52: بينرا | B52: 2897 | C52: 17/3/2019 | D52: 50000 | E52: 505146144 | F52: 31/1/2019 | G52: CIB | H52: مؤجل | I52: على حسن | J52: سداد جزء من المديونية
A53: بينرا | B53: 2898 | C53: 2019-04-04 | D53: 50000 | E53: 505146145 | F53: 31/1/2019 | G53: CIB | H53: مؤجل | I53: على حسن | J53: سداد جزء من المديونية
A54: ايزى سويت | B54: 2899 | C54: 2019-09-02 | D54: 8310.6 | E54: 30084 | F54: 31/1/2019 | G54: التجارى وفا بنك | H54: محصل | I54: حسن الباجورى | J54: سداد جزء من المديونية
A55: ايزى سويت | B55: 2900 | C55: 24/2/2019 | D55: 40629.6 | E55: 30085 | F55: 31/1/2019 | G55: التجارى وفا بنك | H55: تحت التحصيل | I55: حسن الباجورى | J55: سداد جزء من المديونية
A56: الكان | B56: 2901 | C56: 2019-10-01 | D56: 9020 | E56: 38123691 | F56: 43618 | G56: الاهلى القطرى (QNB) | H56: محصل | I56: حسن الباجورى | J56: سداد جزء من المديونية
A57: المصرية السويسرية سيسك | B57: 2902 | C57: 17/2/2019 | D57: 19229.21 | E57: 36964419 | F57: 43710 | G57: الاهلى القطرى (QNB) | H57: محصل | I57: كارم | J57: سداد جزء من المديونية
A58: ايفرجرو | B58: 2903 | C58: 31/1/2019 | D58: 250000 | E58: 37928830 | F58: 43648 | G58: الاهلى القطرى (QNB) | H58: محصل | I58: حسن الباجورى | J58: سداد جزء من المديونية
A59: سكيب | B59: 2904 | C59: 13/2/2019 | D59: 169290 | E59: 34760159 | F59: 2019-11-02 | G59: الاهلى القطرى (QNB) | H59: محصل | I59: حسن الباجورى | J59: سداد جزء من المديونية
A60: الكان | B60: 2905 | C60: 2019-10-01 | D60: 15500 | E60: 38123690 | F60: 43801 | G60: الاهلى القطرى (QNB) | H60: محصل | I60: حسن الباجورى | J60: سداد جزء من المديونية
A61: ايليت | B61: 2906 | C61: 2019-02-02 | D61: 34170.47 | E61: 10100202416583 | F61: 43801 | G61: كريدى اجريكول | H61: محصل | I61: حسن الباجورى | J61: سداد جزء من المديونية
A62: ايليت | B62: 2907 | C62: 2019-07-02 | D62: 46777.5 | E62: 100202416597 | F62: 43801 | G62: كريدى اجريكول | H62: يصرف نقدا | I62: حسن الباجورى | J62: سداد جزء من المديونية
A63: سيراميك الفا | B63: 2908 | C63: 15/2/2019 | D63: 14104.65 | E63: 783782 | F63: 13/2/2019 | G63: الاهلى اليونانى NBG | H63: محصل | I63: المكتب | J63: سداد جزء من المديونية
A64: الشرق للمواد الكيماوية اورنيت | B64: 2909 | C64: 30/3/2019 | D64: 34345 | E64: 6182 | F64: 13/2/2019 | G64: التنمية الصناعية و العمال مصر | H64: مؤجل | I64: المكتب | J64: سداد جزء من المديونية
A65: بروكيم | B65: 2910 | C65: 15/2/2019 | D65: 63337.26 | E65: 38123236 | F65: 13/2/2019 | G65: الاهلى القطرى (QNB) | H65: محصل | I65: حسن الباجورى | J65: سداد جزء من المديونية
A66: بروكيم | B66: 2911 | C66: 22/2/2019 | D66: 52039.52 | E66: 38123237 | F66: 13/2/2019 | G66: الاهلى القطرى (QNB) | H66: تحت التحصيل | I66: حسن الباجورى | J66: سداد جزء من المديونية
A67: الاسكندرية للبناء | B67: 2912 | C67: 13/2/2019 | D67: 4519 | E67: 4103650290 | F67: 14/2/2019 | G67: الكويت الوطنى | H67: محصل | I67: كارم | J67: سداد جزء من المديونية
A68: سويت جيل | B68: 2913 | C68: 28/2/2019 | D68: 130635 | E68: 36701748 | F68: 14/2/2019 | G68: الاهلى القطرى (QNB) | H68: محصل | I68: المكتب | J68: سداد جزء من المديونية
A69: البرج | B69: 2914 | C69: 18/2/2019 | D69: 55189.2 | E69: 4104797731 | F69: 17/2/2019 | G69: الكويت الوطنى | H69: تحت التحصيل | I69: حسن الباجورى | J69: سداد جزء من المديونية
A70: سيراميك ارت | B70: 2915 | C70: 15/3/2019 | D70: 45586.29 | E70: 37763008 | F70: 18/2/2019 | G70: الاهلى القطرى (QNB) | H70: مؤجل | I70: المكتب | J70: سداد جزء من المديونية
A71: ام سى اى | B71: 2916 | C71: 31/3/2019 | D71: 65451 | E71: 51266443 | F71: 18/2/2019 | G71: مصر | H71: مؤجل | I71: المكتب | J71: سداد جزء من المديونية
A72: ايزى سويت | B72: 2917 | C72: 14/2/2019 | D72: 20000 | E72: 1419 | F72: 18/2/2019 | G72: المصرى للتنمية الصادرات | H72: تحت التحصيل | I72: كارم | J72: سداد جزء من المديونية
A73: ايزى سويت | B73: 2918 | C73: 14/2/2019 | D73: 30000 | E73: 1366 | F73: 18/2/2019 | G73: التنمية الصناعية و العمال مصر | H73: تحت التحصيل | I73: كارم | J73: سداد جزء من المديونية
A74: ايزى سويت | B74: 2919 | C74: 19/2/2019 | D74: 33099 | E74: 1367 | F74: 18/2/2019 | G74: التنمية الصناعية و العمال مصر | H74: تحت التحصيل | I74: كارم | J74: سداد جزء من المديونية
A75: ايزى سويت | B75: 2920 | C75: 21/2/2019 | D75: 25075.03 | E75: 1420 | F75: 18/2/2019 | G75: التنمية الصناعية و العمال مصر | H75: تحت التحصيل | I75: كارم | J75: سداد جزء من المديونية
A76: فور سيزون | B76: 2921 | C76: 2019-02-11 | D76: 10070.12 | E76: 121038356 | F76: 19/2/2019 | G76: ابوظبى الاول FAB | H76: تحت التحصيل | I76: المكتب | J76: سداد جزء من المديونية
A77: زيوركيم | B77: 2922 | C77: 15/2/2019 | D77: 18713.1 | E77: 21717000057300 | F77: 19/2/2019 | G77: الاهلى المصرى | H77: تحت التحصيل | I77: المكتب | J77: سداد جزء من المديونية
A78: باسيف | B78: 2923 | C78: 2019-02-11 | D78: 99948.5 | E78: 401424 | F78: 19/2/2019 | G78: HSBC | H78: يصرف نقدا | I78: المكتب | J78: سداد جزء من المديونية
A79: جريت فودز | B79: 2924 | C79: 20/3/2019 | D79: 75841.92 | E79: 47 | F79: 19/2/2019 | G79: ابوظبى | H79: مؤجل | I79: المكتب | J79: سداد جزء من المديونية
A80: الهلال | B80: 2925 | C80: 2019-10-03 | D80: 5515.32 | E80: 3638776 | F80: 20/2/2019 | G80: الاهلى القطرى (QNB) | H80: تحت التحصيل | I80: المكتب | J80: سداد جزء من المديونية
A81: الكان | B81: 2926 | C81: 2019-03-10 | D81: 30000 | E81: 38123704 | F81: 21/2/2019 | G81: الاهلى القطرى (QNB) | H81: تحت التحصيل | J81: سداد جزء من المديونية
A82: الجامعة الالمانية | B82: 2927 | C82: 17/2/2019 | D82: 165686.25 | E82: 503976472 | F82: 24/2/2019 | G82: CIB | H82: محصل | I82: ميدل ايست | J82: سداد جزء من المديونية
A83: سكيب | B83: 2928 | C83: 20-2-2019 | D83: 46056 | E83: 34760309 | F83: 25/2/2019 | G83: الاهلى القطرى (QNB) | H83: محصل | I83: الحسن الباجورى | J83: سداد جزء من المديونية
A84: سكيب | B84: 2929 | C84: 28/2/2019 | D84: 135090 | E84: 34760308 | F84: 25/2/2019 | G84: الاهلى القطرى (QNB) | H84: محصل | I84: الحسن الباجورى | J84: سداد جزء من المديونية
A85: سكيب | B85: 2930 | C85: 2019-03-11 | D85: 162700.8 | E85: 34760428 | F85: 25/2/2019 | G85: الاهلى القطرى (QNB) | H85: تحت التحصيل | I85: الحسن الباجورى | J85: سداد جزء من المديونية | K85: بنك المصرى الخليجى
A86: ايفرجرو السادات | B86: 2931 | C86: 24/3/2019 | D86: 56153.59 | E86: 171474 | F86: 26/2/2019 | G86: HSBC | H86: مؤجل | I86: ميدل ايست | J86: سداد جزء من المديونية
A87: الكان | B87: 2932 | C87: 2019-08-02 | D87: 9418.5 | E87: 38123712 | F87: 26/2/2019 | G87: الاهلى القطرى (QNB) | H87: تحت التحصيل | I87: الحسن الباجورى | J87: سداد جزء من المديونية
A88: بينرا | B88: 2933 | C88: 26/4/2019 | D88: 50000 | E88: 505146125 | F88: 27/2/2019 | G88: CIB | H88: مؤجل | I88: على حسن | J88: سداد جزء من المديونية
A89: بينرا | B89: 2934 | C89: 13-4-2019 | D89: 50000 | E89: 505146126 | F89: 27/2/2019 | G89: CIB | H89: مؤجل | I89: على حسن | J89: سداد جزء من المديونية
A90: ايفرجرو | B90: 2935 | C90: 2019-03-11 | D90: 250000 | E90: 42749842 | F90: 2019-02-27 | G90: مصر | H90: تحت التحصيل | I90: الحسن الباجورى | J90: سداد جزء من المديونية | K90: بنك المصرى الخليجى
A91: ايفرجرو | B91: 2936 | C91: 2019-03-04 | D91: 250000 | E91: 52749841 | F91: 2019-02-27 | G91: مصر | H91: تحت التحصيل | I91: الحسن الباجورى | J91: سداد جزء من المديونية | K91: بنك المصرى الخليجى
A92: لورد | B92: 2937 | C92: 2019-02-27 | D92: 56000 | E92: 36223576 | F92: 2019-02-28 | G92: الاهلى القطرى (QNB) | H92: محصل | I92: الحسن الباجورى | J92: سداد جزء من المديونية | K92: بنك المصرى الخليجى EGB
A93: ابو ريدة | B93: 2938 | C93: 2019-02-14 | D93: 95250 | E93: 596703 | F93: 2019-02-28 | G93: مصر | H93: محصل | J93: سداد جزء من المديونية | K93: بنك المصرى الخليجى EGB
A94: ايزى سويت | B94: 2939 | C94: 2019-02-24 | D94: 20930.4 | E94: 30083 | F94: 2019-03-02 | G94: التجارى وفا بنك | H94: محصل | I94: كارم | J94: سداد جزء من المديونية | K94: بنك المصرى الخليجى EGB
A95: كابسى | B95: 2940 | C95: 2019-02-25 | D95: 182332 | E95: 1404837229 | F95: 2019-03-02 | G95: الامارات دبى الوطنى-NBD | H95: محصل | I95: ميدل ايست | J95: سداد جزء من المديونية | K95: بنك الامارات دبى NBD
A96: بروتال للبويات | B96: 2941 | C96: 2019-02-28 | D96: 21732.73 | E96: 38176738 | F96: 2019-03-04 | G96: الاهلى القطرى (QNB) | H96: تحت التحصيل | I96: الحسن الباجورى | J96: سداد جزء من المديونية | K96: بنك المصرى الخليجى EGB
A97: سيراميك الدولية | B97: 2942 | C97: 2019-03-02 | D97: 61015 | E97: 18377793 | F97: 2019-03-02 | G97: العربى الافريقى | H97: محصل | I97: الحسن الباجورى | J97: سداد جزء من المديونية | K97: بنك المصرى الخليجى EGB
A98: ايليت | B98: 2943 | C98: 2019-03-02 | D98: 149762.25 | E98: 1002406540 | F98: 2019-03-04 | G98: كريدى اجريكول | H98: محصل | I98: على حسن | J98: سداد جزء من المديونية | K98: بنك المصرى الخليجى EGB
A99: ايليت | B99: 2944 | C99: 2019-03-02 | D99: 50052.97 | E99: 1002406542 | F99: 2019-03-04 | G99: كريدى اجريكول | H99: يصرف نقدا | I99: على حسن | J99: سداد جزء من المديونية
A100: ايليت | B100: 2945 | C100: 2019-03-02 | D100: 62187.47 | E100: 100202406550 | F100: 2019-03-04 | G100: كريدى اجريكول | H100: يصرف نقدا | I100: على حسن | J100: سداد جزء من المديونية
A101: البرج | B101: 2946 | C101: 2019-03-07 | D101: 114666.75 | E101: 1404774104 | F101: 2019-03-06 | G101: الامارات دبى الوطنى-NBD | H101: محصل | I101: الحسن الباجورى | J101: سداد جزء من المديونية | K101: بنك الامارات دبى NBD
A102: شركة النحاس المصرية | B102: 2947 | C102: 2019-03-02 | D102: 2690.4 | E102: 17000024564 | F102: 2019-03-06 | G102: الاهلى المصرى | H102: تحت التحصيل | I102: كارم | J102: سداد جزء من المديونية | K102: بنك المصرى الخليجى EGB
A103: سكيب | B103: 2948 | C103: 2019-03-14 | D103: 132741.6 | E103: 34760482 | F103: 2019-03-10 | G103: الاهلى القطرى (QNB) | H103: مؤجل | I103: الحسن الباجورى | J103: سداد جزء من المديونية
A104: الكان | B104: 2949 | C104: 2019-02-21 | D104: 30147.5 | E104: 38123739 | F104: 2019-11-03 | G104: الاهلى القطرى qnb | H104: تحت التحصل | I104: الحسن الباجورى
A105: كومبتكس | B105: 2950 | C105: 2019-03-09 | D105: 11325.6 | E105: 180917006826 | F105: 2019-03-11 | G105: الاسكندرية | H105: تحت التحصيل | I105: الحسن الباجورى | J105: سداد جزء من المديونية
A106: بينرا | B106: 2951 | C106: 2019-04-08 | D106: 50000 | E106: 505693859 | F106: 2019-03-12 | G106: CIB | H106: مؤجل | I106: المكتب | J106: سداد جزء من المديونية
A107: بينرا | B107: 2952 | C107: 2019-04-23 | D107: 50000 | E107: 505693860 | F107: 2019-03-12 | G107: CIB | H107: مؤجل | I107: المكتب | J107: سداد جزء من المديونية
A108: سيراميك الفا | B108: 2953 | C108: 2019-03-25 | D108: 14104.65 | E108: 44371512 | F108: 2019-03-13 | G108: المصرى للتنمية الصادرات | H108: مؤجل | I108: ميدل ايست | J108: سداد جزء من المديونية

Sheet نقدية فيبر
H4: =$K$2000 -> 142
C5: كشف حساب خزينة الفيبر
A7: اسم العميل | B7: رقم الاذن | C7: المبلغ | D7: اسم المندزب | E7: البيان | F7: اسم المورد / العهدة | G7: رقم الاذن | H7: المبلغ | I7: البيان | J7: التاريخ | K7: الرصيد | L7: مجمع عملاء
A8: رصيد اول | C8: 17505 | E8: رصيد اول يناير2019 | K8: =SUMPRODUCT($C$8:C8-$H$8:H8) -> 17505
A9: شركة الفادى | B9: 1356 | C9: 46000 | F9: المغاورى | G9: 2496 | H9: 15000 | J9: 2019-01-03 | K9: =SUMPRODUCT($C$8:C9-$H$8:H9) -> 48505
A10: سداد سلفة رمضان بيطيخ | B10: 1357 | C10: 100 | F10: الطباخ | G10: 2497 | H10: 50000 | J10: 2019-01-03 | K10: =SUMPRODUCT($C$8:C10-$H$8:H10) -> -1395
A11: البنك | B11: 1358 | C11: 80000 | E11: صرف شيك | F11: جارى صاحب المنشاءة | G11: 2498 | H11: 20000 | J11: 2019-01-03 | K11: =SUMPRODUCT($C$8:C11-$H$8:H11) -> 58605
F12: احمد شوقى | G12: 2499 | H12: 7065.25 | J12: 2019-01-03 | K12: =SUMPRODUCT($C$8:C12-$H$8:H12) -> 51539.75
F13: احمد شوقى | G13: 2500 | H13: 3000 | J13: 2019-01-03 | K13: =SUMPRODUCT($C$8:C13-$H$8:H13) -> 48539.75
A14: ايرادات اخرى يومية | B14: 1359 | C14: 26750 | F14: طارق سعد | G14: 2501 | H14: 20000 | J14: 2019-01-06 | K14: =SUMPRODUCT($C$8:C14-$H$8:H14) -> 55289.75
F15: المغاورى | G15: 2502 | H15: 29535.5 | J15: 2019-01-06 | K15: =SUMPRODUCT($C$8:C15-$H$8:H15) -> 25754.25
F16: المغاورى | G16: 2503 | H16: 5560 | J16: 2019-01-06 | K16: =SUMPRODUCT($C$8:C16-$H$8:H16) -> 20194.25
A17: عمارة جراند تاور | B17: 1360 | C17: 3000 | F17: المغاورى | G17: 2504 | H17: 4000 | J17: 2019-01-08 | K17: =SUMPRODUCT($C$8:C17-$H$8:H17) -> 19194.25
A18: عمارة رقم 147 | B18: 1361 | C18: 450 | D18: رمضان | E18: اصلاح | F18: الطباخ | G18: 2505 | H18: 62000 | J18: 2019-01-09 | K18: =SUMPRODUCT($C$8:C18-$H$8:H18) -> -42355.75
A19: البنك | B19: 1362 | C19: 50000 | E19: صرف شيك | F19: سلفة سامح وطنية | G19: 2506 | H19: 2000 | J19: 2019-01-09 | K19: =SUMPRODUCT($C$8:C19-$H$8:H19) -> 5644.25
A20: سداد سلفة سامح وطنية | B20: 1363 | C20: 500 | D20: المكتب | E20: سداد وهمى | J20: 2019-01-09 | K20: =SUMPRODUCT($C$8:C20-$H$8:H20) -> 6144.25
A21: ايرادات متنوعة | B21: 1364 | C21: 300 | F21: المغاورى | G21: 2507 | H21: 20850 | J21: 2019-01-12 | K21: =SUMPRODUCT($C$8:C21-$H$8:H21) -> -14405.75
A22: ايرادات اخرى يومية | B22: 1365 | C22: 30939.5 | F22: المغاورى | G22: 2508 | H22: 9530 | J22: 2019-01-12 | K22: =SUMPRODUCT($C$8:C22-$H$8:H22) -> 7003.75
F23: لاغى | G23: 2509 | J23: 2019-01-12 | K23: =SUMPRODUCT($C$8:C23-$H$8:H23) -> 7003.75
F24: سلف مؤقتة | G24: 2510 | H24: 900 | J24: 2019-01-12 | K24: =SUMPRODUCT($C$8:C24-$H$8:H24) -> 6103.75
F25: لاغى | G25: 2511 | J25: 2019-01-12 | K25: =SUMPRODUCT($C$8:C25-$H$8:H25) -> 6103.75
A26: البنك | B26: 1366 | C26: 33000 | E26: صرف شيك | F26: المغاورى | G26: 2512 | H26: 5000 | J26: 2019-01-15 | K26: =SUMPRODUCT($C$8:C26-$H$8:H26) -> 34103.75
A27: عمارة جراند تاور | B27: 1367 | C27: 10500 | D27: قاسم | E27: من تحت الحساب | F27: تامين مصر لصناعة الكيماويات | G27: 2513 | H27: 4000 | J27: 2019-01-15 | K27: =SUMPRODUCT($C$8:C27-$H$8:H27) -> 40603.75
A28: احمد الشريف | B28: 1368 | C28: 500 | D28: المكتب | E28: اصلاح | F28: الطباخ | G28: 2514 | H28: 33750 | J28: 2019-01-15 | K28: =SUMPRODUCT($C$8:C28-$H$8:H28) -> 7353.75
A29: شركة الفادى | B29: 1369 | C29: 23000 | D29: محمد قاسم | E29: من تحت الحساب | F29: طارق سعد | G29: 2515 | H29: 15000 | J29: 2019-01-17 | K29: =SUMPRODUCT($C$8:C29-$H$8:H29) -> 15353.75
F30: المغاورى | G30: 2516 | H30: 2000 | J30: 2019-01-17 | K30: =SUMPRODUCT($C$8:C30-$H$8:H30) -> 13353.75
F31: المغاورى | G31: 2517 | H31: 8800 | J31: 2019-01-17 | K31: =SUMPRODUCT($C$8:C31-$H$8:H31) -> 4553.75
A32: ايرادات اخرى يومية | B32: 1370 | C32: 31790.25 | F32: الطباخ | G32: 2518 | H32: 6200 | J32: 2019-01-17 | K32: =SUMPRODUCT($C$8:C32-$H$8:H32) -> 30144
A33: شركة الفادى | B33: 1371 | C33: 23000 | F33: المغاورى | G33: 2519 | H33: 7000 | J33: 2019-01-19 | K33: =SUMPRODUCT($C$8:C33-$H$8:H33) -> 46144
F34: المغاورى | G34: 2520 | H34: 10685 | J34: 2019-01-19 | K34: =SUMPRODUCT($C$8:C34-$H$8:H34) -> 35459
F35: طارق سعد | G35: 2521 | H35: 15000 | J35: 2019-01-20 | K35: =SUMPRODUCT($C$8:C35-$H$8:H35) -> 20459
F36: المغاورى | G36: 2522 | H36: 10000 | J36: 2019-01-26 | K36: =SUMPRODUCT($C$8:C36-$H$8:H36) -> 10459
A37: ايرادات اخرى يومية | B37: 1372 | C37: 70260 | F37: المغاورى | G37: 2523 | H37: 8215 | J37: 2019-01-27 | K37: =SUMPRODUCT($C$8:C37-$H$8:H37) -> 72504
F38: المغاورى | G38: 2524 | H38: 6975 | J38: 2019-01-27 | K38: =SUMPRODUCT($C$8:C38-$H$8:H38) -> 65529
F39: سلف مؤقتة | G39: 2525 | H39: 750 | J39: 2019-01-27 | K39: =SUMPRODUCT($C$8:C39-$H$8:H39) -> 64779
F40: احمد شوقى | G40: 2526 | H40: 2275 | J40: 2019-01-27 | K40: =SUMPRODUCT($C$8:C40-$H$8:H40) -> 62504
A41: البنك | B41: 1373 | C41: 35000 | E41: صرف شيك | F41: الطباخ | G41: 2527 | H41: 30000 | J41: 2019-01-29 | K41: =SUMPRODUCT($C$8:C41-$H$8:H41) -> 67504
A42: سلف مؤقتة | B42: 1374 | C42: 1650 | D42: المكتب | E42: سلف مؤقتة | F42: المغاورى | G42: 2528 | H42: 7304 | J42: 2019-01-29 | K42: 2019-01-29
A43: البنك | B43: 1375 | C43: 50000 | E43: صرف شيك | F43: المغاورى | G43: 2529 | H43: 71855 | J43: 2019-01-29 | K43: =SUMPRODUCT($C$8:C43-$H$8:H43) -> 39995
A44: سداد سلف العاملين | B44: 1376 | C44: 4150 | F44: طارق سعد | G44: 2530 | H44: 10000 | J44: 2019-01-30 | K44: =SUMPRODUCT($C$8:C44-$H$8:H44) -> 34145
A45: سداد سلف المكتب | B45: 1377 | C45: 750 | F45: احمد شوقى مع محمود | G45: 2531 | H45: 4000 | J45: 2019-01-30 | K45: =SUMPRODUCT($C$8:C45-$H$8:H45) -> 30895
A46: ايرادات اخرى يومية | B46: 1378 | C46: 70522 | F46: سلفة محمد رمضان | G46: 2532 | H46: 1000 | J46: 2019-01-31 | K46: =SUMPRODUCT($C$8:C46-$H$8:H46) -> 100417
F47: الطباخ | G47: 2533 | H47: 54000 | J47: 2019-01-31 | K47: =SUMPRODUCT($C$8:C47-$H$8:H47) -> 46417
F48: المغاورى | G48: 2534 | H48: 6603.5 | J48: 2019-01-31 | K48: =SUMPRODUCT($C$8:C48-$H$8:H48) -> 39813.5
F49: المغاورى- شيرين | G49: 2535 | H49: 1725 | J49: 2019-01-31 | K49: =SUMPRODUCT($C$8:C49-$H$8:H49) -> 38088.5
F50: المغاورى | G50: 2536 | H50: 25750 | J50: 2019-01-03 | K50: 2019-01-03
F51: جارى صاحب المنشاءة | G51: 2537 | H51: 15000 | J51: 2019-02-03 | K51: 2019-02-03
F52: المغاورى | G52: 2538 | H52: 7820 | J52: 2019-02-03 | K52: =SUMPRODUCT($C$8:C52-$H$8:H52) -> -10481.5
F53: المغاورى | G53: 2539 | H53: 20000 | J53: 2019-02-05 | K53: =SUMPRODUCT($C$8:C53-$H$8:H53) -> -30481.5
F54: المغاورى | G54: 2540 | H54: 36400 | J54: 2019-02-05 | K54: =SUMPRODUCT($C$8:C54-$H$8:H54) -> -66881.5
F55: طارق سعد | G55: 2541 | H55: 25000 | J55: 2019-02-07 | K55: 2019-02-07
F56: الوطنية | G56: 2542 | H56: 30956.75 | J56: 2019-02-07 | K56: 2019-02-07
F57: حسن مصطفى | G57: 2543 | H57: 9043.25 | J57: 2019-02-07 | K57: =SUMPRODUCT($C$8:C57-$H$8:H57) -> -131881.5
F58: جارى صاحب المنشاءة | G58: 2544 | H58: 15000 | J58: 2019-02-07 | K58: =SUMPRODUCT($C$8:C58-$H$8:H58) -> -146881.5
F59: المغاورى | G59: 2545 | H59: 12550 | J59: 2019-02-07 | K59: =SUMPRODUCT($C$8:C59-$H$8:H59) -> -159431.5
F60: طارق سعد | G60: 2546 | H60: 20000 | J60: 2019-02-07 | K60: =SUMPRODUCT($C$8:C60-$H$8:H60) -> -179431.5
F61: جارى صاحب المنشاءة | G61: 2547 | H61: 250000 | J61: 2019-02-07 | K61: =SUMPRODUCT($C$8:C61-$H$8:H61) -> -429431.5
F62: سلف مؤقتة | G62: 2548 | H62: 150 | I62: سلف مؤقتة بمعرفة شيرين | J62: 2019-07-02 | K62: =SUMPRODUCT($C$8:C62-$H$8:H62) -> -429581.5
F63: المغاورى | G63: 2549 | H63: 9789 | I63: مصاريف المصنع بمعرفة شيرين6-2-2019 | J63: 2019-07-02 | K63: =SUMPRODUCT($C$8:C63-$H$8:H63) -> -439370.5
A64: بنك الوطنية | B64: 1379 | C64: 10500 | D64: المكتب | E64: من تحت حساب المديونية | J64: 2019-03-02 | K64: =SUMPRODUCT($C$8:C64-$H$8:H64) -> -428870.5
A65: فتحى محمود | B65: 1380 | C65: 17640 | D65: المكتب | E65: من تحت حساب المديونية | J65: 2019-03-02 | K65: =SUMPRODUCT($C$8:C65-$H$8:H65) -> -411230.5
A66: بنك الوطنية | B66: 1381 | C66: 40000 | D66: المكتب | E66: من تحت حساب المديونية | J66: 2019-05-02 | K66: =SUMPRODUCT($C$8:C66-$H$8:H66) -> -371230.5
A67: شركة طيبة | B67: 1382 | C67: 2000 | D67: عادل عبد العزيز | E67: من تحت حساب المديونية | J67: 2019-05-02 | K67: =SUMPRODUCT($C$8:C67-$H$8:H67) -> -369230.5
A68: جارى بلاستيك | B68: 1383 | C68: 145000 | D68: المكتب | E68: من تحت حساب المديونية | J68: 2019-07-02 | K68: =SUMPRODUCT($C$8:C68-$H$8:H68) -> -224230.5
A69: رد عهدة المغاورى | B69: 1384 | C69: 355000 | D69: المكتب | E69: من تحت حساب المديونية | J69: 2019-07-02 | K69: =SUMPRODUCT($C$8:C69-$H$8:H69) -> 130769.5
A70: بيع براميل | B70: 1385 | C70: 2475 | D70: المكتب | E70: 39-6*75=2475 | J70: 2019-07-02 | K70: =SUMPRODUCT($C$8:C70-$H$8:H70) -> 133244.5
A71: ايرادات اخرى يومية | B71: 1386 | C71: 58012.75 | D71: المكتب | E71: ايرادات الوطنية من رقم 27الى32 | J71: 2019-07-02 | K71: =SUMPRODUCT($C$8:C71-$H$8:H71) -> 191257.25
A72: فندق جدة | B72: 1387 | C72: 500 | D72: المكتب | E72: توريد غطاء جزان | J72: 2019-12-02 | K72: =SUMPRODUCT($C$8:C72-$H$8:H72) -> 191757.25
A73: سلفة / السيد الشافعى | B73: 1388 | C73: 10000 | D73: المكتب | E73: سداد سلف | J73: 2019-12-02 | K73: =SUMPRODUCT($C$8:C73-$H$8:H73) -> 201757.25
J74: 2019-12-02 | K74: =SUMPRODUCT($C$8:C74-$H$8:H74) -> 201757.25
F75: المغاورى | G75: 2550 | H75: 35000 | I75: 19100مكافات مكتب +15900نقدا | J75: 2019-12-02 | K75: =SUMPRODUCT($C$8:C75-$H$8:H75) -> 166757.25
F76: طارق سعد | G76: 2551 | H76: 40000 | I76: من تحت الحساب | J76: 2019-12-02 | K76: =SUMPRODUCT($C$8:C76-$H$8:H76) -> 126757.25
F77: عمرو للاستراد | G77: 2552 | H77: 50000 | I77: من تحت الحساب | J77: 2019-12-02 | K77: =SUMPRODUCT($C$8:C77-$H$8:H77) -> 76757.25
F78: الاسكندرية لتوزيع الكهرباء | G78: 2553 | H78: 12125 | I78: تامين | J78: 2019-12-02 | K78: =SUMPRODUCT($C$8:C78-$H$8:H78) -> 64632.25
F79: سلفة / محمد قاسم | G79: 2554 | H79: 1000 | I79: سلفة قاسم | J79: 2019-12-02 | K79: =SUMPRODUCT($C$8:C79-$H$8:H79) -> 63632.25
F80: المغاورى | G80: 2555 | H80: 9010 | I80: عهدة بدل اجازات المصنع | J80: 2019-12-02 | K80: =SUMPRODUCT($C$8:C80-$H$8:H80) -> 54622.25
A81: شركة طيبة | B81: 1389 | C81: 5600 | D81: عادل عبد العزيز | E81: من تحت حساب المديونية | J81: 14/2/2019 | K81: =SUMPRODUCT($C$8:C81-$H$8:H81) -> 60222.25
F82: المغاورى | G82: 2556 | H82: 10000 | I82: عهدة مالية نقدا | J82: 14/2/2019 | K82: =SUMPRODUCT($C$8:C82-$H$8:H82) -> 50222.25
F83: عمرو للاستراد | G83: 2557 | H83: 40000 | I83: من تحت حساب المديونية | J83: 14/2/2019 | K83: =SUMPRODUCT($C$8:C83-$H$8:H83) -> 10222.25
F84: سلف مؤقتة | G84: 2558 | H84: 170 | J84: 14/2/2019 | K84: =SUMPRODUCT($C$8:C84-$H$8:H84) -> 10052.25
F85: المغاورى | G85: 2559 | H85: 6725 | I85: مصاريف المصنع بمعرفة شيرين | J85: 14/2/2019 | K85: =SUMPRODUCT($C$8:C85-$H$8:H85) -> 3327.25
F86: م/ احمد شوقى | G86: 2560 | H86: 3000 | I86: عهدة مالية نقدا | J86: 14/2/2019 | K86: =SUMPRODUCT($C$8:C86-$H$8:H86) -> 327.25
A87: ايرادات اخرى يومية | B87: 1390 | C87: 37044.5 | D87: المكتب | E87: من تحت حساب المديونية من 33الى 41 | J87: 17/2/2019 | K87: =SUMPRODUCT($C$8:C87-$H$8:H87) -> 37371.75
A88: بنك الامارات NBD | B88: 1391 | C88: 70000 | D88: المكتب | E88: من تحت حساب المديونية | J88: 17/2/2019 | K88: =SUMPRODUCT($C$8:C88-$H$8:H88) -> 107371.75
F89: طارق سعد | G89: 2561 | H89: 20000 | I89: من تحت الحساب | J89: 17/2/2019 | K89: =SUMPRODUCT($C$8:C89-$H$8:H89) -> 87371.75
F90: الطباخ | G90: 2562 | H90: 56000 | I90: من تحت الحساب | J90: 17/2/2019 | K90: =SUMPRODUCT($C$8:C90-$H$8:H90) -> 31371.75
F91: م/ احمد شوقى | G91: 2563 | H91: 2000 | I91: عهدة مالية نقدا ليد م /خالد | J91: 17/2/2019 | K91: =SUMPRODUCT($C$8:C91-$H$8:H91) -> 29371.75
A92: الصرف الصحى | B92: 1392 | C92: 37455 | E92: من تحت حساب المديونية | J92: 17/2/2019 | K92: =SUMPRODUCT($C$8:C92-$H$8:H92) -> 66826.75
F93: المغاورى | G93: 2564 | H93: 5000 | I93: عهدة مالية نقدا | J93: 17/2/2019 | K93: =SUMPRODUCT($C$8:C93-$H$8:H93) -> 61826.75
F94: شركة مصر لصناعة الكيماويات | G94: 2565 | H94: 17546 | I94: استكمال تامين | J94: 17/2/2019 | K94: =SUMPRODUCT($C$8:C94-$H$8:H94) -> 44280.75
F95: طارق سعد | G95: 2566 | H95: 25000 | J95: 19/2/2019 | K95: =SUMPRODUCT($C$8:C95-$H$8:H95) -> 19280.75
F96: المغاورى | G96: 2567 | H96: 15000 | I96: 12950مصاريف +2050نقدا | J96: 19/2/2019 | K96: =SUMPRODUCT($C$8:C96-$H$8:H96) -> 4280.75
A97: اسامة ابو زيد | B97: 1393 | C97: 550 | E97: من تحت حساب المديونية | J97: 21/2/2019 | K97: =SUMPRODUCT($C$8:C97-$H$8:H97) -> 4830.75
A98: شركة اليكس باك | B98: 1394 | C98: 30000 | D98: محمدقاسم | E98: من تحت حساب المديونية | J98: 21/2/2019 | K98: =SUMPRODUCT($C$8:C98-$H$8:H98) -> 34830.75
F99: المغاورى | G99: 2568 | H99: 7000 | I99: عهدة مالية | J99: 21/2/2019 | K99: =SUMPRODUCT($C$8:C99-$H$8:H99) -> 27830.75
F100: المغاورى | G100: 2569 | H100: 3300 | I100: عهدة خالد | J100: 21/2/2019 | K100: =SUMPRODUCT($C$8:C100-$H$8:H100) -> 24530.75
F101: م/ احمد شوقى | G101: 2570 | H101: 7000 | I101: عهدة مالية | J101: 21/2/2019 | K101: =SUMPRODUCT($C$8:C101-$H$8:H101) -> 17530.75
F102: المغاورى | G102: 2571 | H102: 6975 | I102: مصاريف شيرين بالمصنع | J102: 21/2/2019 | K102: =SUMPRODUCT($C$8:C102-$H$8:H102) -> 10555.75
F103: سلف مؤقتة | G103: 2572 | H103: 350 | J103: 21/2/2019 | K103: =SUMPRODUCT($C$8:C103-$H$8:H103) -> 10205.75
F104: م/ احمد شوقى | G104: 2573 | H104: 3000 | I104: عهدة مالية | J104: 21/2/2019 | K104: =SUMPRODUCT($C$8:C104-$H$8:H104) -> 7205.75
A105: ينك مصر | B105: 1395 | C105: 20000 | D105: المكتب | E105: سحب بمعرفة م/ خالد (المعاش) | J105: 22/2/2019 | K105: =SUMPRODUCT($C$8:C105-$H$8:H105) -> 27205.75
A106: ايرادات اخرى يومية | B106: 1396 | C106: 62471.5 | E106: الوطنية من 42 الى 47 | J106: 22/2/2019 | K106: =SUMPRODUCT($C$8:C106-$H$8:H106) -> 89677.25
F107: معاش م / خالد | G107: 2574 | H107: 19718 | I107: معاش م خالدمن يناير2017 حتى مارس 2019 | J107: 22/2/2019 | K107: =SUMPRODUCT($C$8:C107-$H$8:H107) -> 69959.25
A108: بنك الامارات NBD | B108: 1397 | C108: 60000 | E108: سحب من البنك | J108: 24/2/2019 | K108: =SUMPRODUCT($C$8:C108-$H$8:H108) -> 129959.25
F109: طارق سعد | G109: 2575 | H109: 20000 | I109: فى بنك الامارات | J109: 24/2/2019 | K109: =SUMPRODUCT($C$8:C109-$H$8:H109) -> 109959.25
F110: عمرو للاستراد | G110: 2576 | H110: 39205 | I110: فى بنك saib | J110: 24/2/2019 | K110: =SUMPRODUCT($C$8:C110-$H$8:H110) -> 70754.25
F111: الاسكندرية لتوزيع الكهرباء | G111: 2577 | H111: 12780 | I111: تامين سلالم الكهرباء | J111: 24/2/2019 | K111: =SUMPRODUCT($C$8:C111-$H$8:H111) -> 57974.25
A112: ايرادات متنوعة | B112: 1398 | C112: 300 | D112: المكتب | E112: الحاج مصطفى فرق حصوة | J112: 25/2/2019 | K112: =SUMPRODUCT($C$8:C112-$H$8:H112) -> 58274.25
A113: صبرى سليمان الشهاوى | B113: 1399 | C113: 1200 | D113: المكتب | E113: 2عطاء خزان 5متر القاهرة | J113: 25/2/2019 | K113: =SUMPRODUCT($C$8:C113-$H$8:H113) -> 59474.25
A114: مستشفى زمزم | B114: 1400 | C114: 3000 | D114: محمد قاسم | E114: دفعة مقدمة من 1 فى 7.5متر م بسعر 6000 | J114: 25/2/2019 | K114: =SUMPRODUCT($C$8:C114-$H$8:H114) -> 62474.25
J115: 25/2/2019 | K115: =SUMPRODUCT($C$8:C115-$H$8:H115) -> 62474.25
F116: المغاورى | G116: 2578 | H116: 17000 | I116: عهدة مالية نقدا | J116: 25/2/2019 | K116: =SUMPRODUCT($C$8:C116-$H$8:H116) -> 45474.25
F117: المغاورى | G117: 2579 | H117: 2500 | I117: عهدة فرج لشراء معدات | J117: 25/2/2019 | K117: =SUMPRODUCT($C$8:C117-$H$8:H117) -> 42974.25
F118: عمرو للاستراد | G118: 2580 | H118: 45000 | I118: ايدع فى بنك | J118: 27/2/2019 | K118: =SUMPRODUCT($C$8:C118-$H$8:H118) -> -2025.75
A119: فيلا / يحيى قاسم | B119: 1401 | C119: 5000 | D119: محمد قاسم | E119: من تحت حساب المديونية | J119: 25/2/2019 | K119: =SUMPRODUCT($C$8:C119-$H$8:H119) -> 2974.25
A120: سلف مؤقتة | B120: 1402 | C120: 670 | D120: المكتب | E120: من تحت حساب المديونية | J120: 25/2/2019 | K120: =SUMPRODUCT($C$8:C120-$H$8:H120) -> 3644.25
A121: جارى صاحب المنشاءة | B121: 1403 | C121: 200000 | D121: المكتب | E121: من تحت حساب المديونية | J121: 27/2/2019 | K121: =SUMPRODUCT($C$8:C121-$H$8:H121) -> 203644.25
A122: بنك الامارات NBD | B122: 1404 | C122: 50000 | D122: المكتب | E122: من تحت حساب المديونية | J122: 27/2/2019 | K122: =SUMPRODUCT($C$8:C122-$H$8:H122) -> 253644.25
A123: مارينا لسقالات | B123: 1405 | C123: 44040 | D123: اسلام | E123: من تحت حساب المديونية | J123: 27/2/2019 | K123: =SUMPRODUCT($C$8:C123-$H$8:H123) -> 297684.25
A124: سداد سلف العاملين | B124: 1406 | C124: 2050 | D124: مصنع الفيبر | E124: من تحت حساب المديونية | J124: 28/2/2019 | K124: =SUMPRODUCT($C$8:C124-$H$8:H124) -> 299734.25
A125: ايرادات اخرى يومية | B125: 1407 | C125: 14711.5 | D125: المكتب | E125: ايرادات الوطنية من 48الى53 | J125: 28/2/2019 | K125: =SUMPRODUCT($C$8:C125-$H$8:H125) -> 314445.75
F126: المغاورى | G126: 2581 | H126: 2000 | I126: عهدة مالية نقدا | J126: 28/2/2019 | K126: =SUMPRODUCT($C$8:C126-$H$8:H126) -> 312445.75
F127: المغاورى | G127: 2582 | H127: 3000 | I127: عهدة مالية نقدا | J127: 28/2/2019 | K127: =SUMPRODUCT($C$8:C127-$H$8:H127) -> 309445.75
F128: المغاورى | G128: 2583 | H128: 67985 | I128: عهدة مرتبات المصنع | J128: 28/2/2019 | K128: =SUMPRODUCT($C$8:C128-$H$8:H128) -> 241460.75
F129: لاغى | G129: 2584 | H129: 0 | J129: 28/2/2019 | K129: =SUMPRODUCT($C$8:C129-$H$8:H129) -> 241460.75
F130: المغاورى | G130: 2585 | H130: 13150 | I130: مكافات المصنع الدفعة التانية | J130: 28/2/2019 | K130: =SUMPRODUCT($C$8:C130-$H$8:H130) -> 228310.75
F131: شركة تراست | G131: 2586 | H131: 75000 | I131: ايداع فى بنك ابو ظبى | J131: 28/2/2019 | K131: =SUMPRODUCT($C$8:C131-$H$8:H131) -> 153310.75
F132: المغاورى | G132: 2587 | H132: 9775 | I132: مصاريف مصنع الفيبر بمعرفة شيرين28/2 | J132: 2019-02-28 | K132: =SUMPRODUCT($C$8:C132-$H$8:H132) -> 143535.75
F133: م/ احمد شوقى | G133: 2588 | H133: 2812 | I133: عهدة مالية من تحصلات | J133: 2019-02-28 | K133: =SUMPRODUCT($C$8:C133-$H$8:H133) -> 140723.75
A134: سلفة / محمد قاسم | B134: 1408 | C134: 2000 | D134: المكتب | E134: من تحت حساب السلفة وباقى 4000 | J134: 2019-03-02 | K134: =SUMPRODUCT($C$8:C134-$H$8:H134) -> 142723.75
A135: سداد سلف الموطفين بالمكتب | B135: 1409 | C135: 750 | D135: المكتب | E135: من تحت حساب المديونية | J135: 2019-03-02 | K135: =SUMPRODUCT($C$8:C135-$H$8:H135) -> 143473.75
F136: المغاورى | G136: 2589 | H136: 24645 | I136: مرتبات المكتب | J136: 2019-03-02 | K136: =SUMPRODUCT($C$8:C136-$H$8:H136) -> 118828.75
F137: جارى صاحب المنشاةء | G137: 2590 | H137: 40000 | J137: 2019-03-02 | K137: =SUMPRODUCT($C$8:C137-$H$8:H137) -> 78828.75
A138: م / نيفين | B138: 1410 | C138: 550 | D138: المكتب | E138: اصلاح و تركيب | J138: 2019-03-04 | K138: =SUMPRODUCT($C$8:C138-$H$8:H138) -> 79378.75
A139: سلف مؤقتة | B139: 1411 | C139: 600 | D139: المكتب | E139: رد سلفة احمد على | J139: 2019-03-04 | K139: =SUMPRODUCT($C$8:C139-$H$8:H139) -> 79978.75
A140: د / يحيى عثمان | B140: 1412 | C140: 550 | D140: المكتب | E140: اصلاح و تركيب | J140: 2019-03-04 | K140: =SUMPRODUCT($C$8:C140-$H$8:H140) -> 80528.75
A141: سلفة / محمد خالد | B141: 1413 | C141: 2811 | D141: المكتب | E141: 7900-2811يكون الباقى 5089 | J141: 2019-03-04 | K141: =SUMPRODUCT($C$8:C141-$H$8:H141) -> 83339.75
A142: بنك الامارات NBD | B142: 1414 | C142: 29000 | D142: المكتب | E142: صرف شيك | J142: 2019-03-04 | K142: =SUMPRODUCT($C$8:C142-$H$8:H142) -> 112339.75
F143: المغاورى | G143: 2591 | H143: 6633 | I143: مصاريف بمعرفة ثروت | J143: 2019-03-04 | K143: =SUMPRODUCT($C$8:C143-$H$8:H143) -> 105706.75
F144: طارق سعد | G144: 2592 | H144: 15000 | I144: ايدع فى بنك الامارات | J144: 2019-03-04 | K144: =SUMPRODUCT($C$8:C144-$H$8:H144) -> 90706.75
F145: شركة تراست | G145: 2593 | H145: 75000 | I145: ايدع فى بنك ابو ظبى | J145: 2019-03-04 | K145: =SUMPRODUCT($C$8:C145-$H$8:H145) -> 15706.75
A146: عمرو موسى | B146: 1415 | C146: 2812 | D146: مصنع الفيبر | E146: الوح ايكون | J146: 2019-03-06 | K146: =SUMPRODUCT($C$8:C146-$H$8:H146) -> 18518.75
A147: مجمع الكرنك | B147: 1416 | C147: 6566 | D147: مصنع الفيبر | E147: الوح ايكون | J147: 2019-03-06 | K147: =SUMPRODUCT($C$8:C147-$H$8:H147) -> 25084.75
A148: اباظة | B148: 1417 | C148: 4850 | D148: مصنع الفيبر | E148: عدد 6 الوح ايكون | J148: 2019-03-06 | K148: =SUMPRODUCT($C$8:C148-$H$8:H148) -> 29934.75
A149: مصر الخليج | B149: 1418 | C149: 7500 | D149: مصنع الفيبر | E149: عدد 42 الوح ايكون | J149: 2019-03-06 | K149: =SUMPRODUCT($C$8:C149-$H$8:H149) -> 37434.75
A150: مستشفى زمزم | B150: 1419 | C150: 3000 | D150: محمد قاسم | E150: من تحت الحساب | J150: 2019-03-06 | K150: =SUMPRODUCT($C$8:C150-$H$8:H150) -> 40434.75
F151: المغاورى | G151: 2594 | H151: 17000 | I151: 7411.75بمعرفة ثروت و 9588.25نقدا | J151: 2019-03-06 | K151: =SUMPRODUCT($C$8:C151-$H$8:H151) -> 23434.75
A152: بيع براميل | B152: 1420 | C152: 4310 | D152: مصنع الفيبر | E152: من تحت حساب المديونية | J152: 2019-03-10 | K152: =SUMPRODUCT($C$8:C152-$H$8:H152) -> 27744.75
A153: ايرادات اخرى يومية | B153: 1421 | C153: 10739.5 | D153: المكتب | E153: ايراد الوطنية من 54الى58 | J153: 2019-03-10 | K153: =SUMPRODUCT($C$8:C153-$H$8:H153) -> 38484.25
A154: شركة اليكس باك | B154: 1422 | C154: 25000 | D154: محمد قاسم | E154: محم تحت الحساب | J154: 2019-03-10 | K154: =SUMPRODUCT($C$8:C154-$H$8:H154) -> 63484.25
A155: ايرادات متنوعة | B155: 1423 | C155: 25 | D155: مصنع الفيبر | E155: عدد 2 ببة | J155: 2019-03-10 | K155: =SUMPRODUCT($C$8:C155-$H$8:H155) -> 63509.25
A156: ايرادات اخرى يومية | B156: 1424 | C156: 39669.75 | D156: المكتب | E156: ايراد الوطنية من59الى61 | J156: 2019-03-10 | K156: =SUMPRODUCT($C$8:C156-$H$8:H156) -> 103179
F157: لاغى | G157: 2595 | H157: 0 | J157: 2019-03-10 | K157: =SUMPRODUCT($C$8:C157-$H$8:H157) -> 103179
F158: عمرو للاستراد | G158: 2596 | H158: 30000 | I158: ايدع فى بنك saib | J158: 2019-03-10 | K158: =SUMPRODUCT($C$8:C158-$H$8:H158) -> 73179
F159: م/ احمد شوقى | G159: 2597 | H159: 4190 | I159: عهدة مالية | J159: 2019-03-10 | K159: =SUMPRODUCT($C$8:C159-$H$8:H159) -> 68989
F160: م/ احمد شوقى | G160: 2598 | H160: 11900 | I160: عهدة مالية | J160: 2019-03-10 | K160: =SUMPRODUCT($C$8:C160-$H$8:H160) -> 57089
F161: المغاورى | G161: 2599 | H161: 14600 | I161: مصاريف + 12000عهدة مشتريات | J161: 2019-03-10 | K161: =SUMPRODUCT($C$8:C161-$H$8:H161) -> 42489
F162: المغاورى | G162: 2600 | H162: 4027 | I162: عهدة مالية | J162: 2019-03-10 | K162: =SUMPRODUCT($C$8:C162-$H$8:H162) -> 38462
F163: انور | G163: 2601 | H163: 3000 | I163: فيبرحصيرة | J163: 2019-03-10 | K163: =SUMPRODUCT($C$8:C163-$H$8:H163) -> 35462
F164: طارق سعد | G164: 2602 | H164: 20000 | I164: من تحت الحساب | J164: 2019-03-10 | K164: =SUMPRODUCT($C$8:C164-$H$8:H164) -> 15462
F165: شركة مصر لصناعة الكيماويات | G165: 2603 | H165: 3500 | I165: تامين مناقصة توريد تنك | J165: 2019-03-10 | K165: =SUMPRODUCT($C$8:C165-$H$8:H165) -> 11962
F166: المغاورى | G166: 2604 | H166: 1820 | I166: 1250+570 | J166: 2019-03-10 | K166: =SUMPRODUCT($C$8:C166-$H$8:H166) -> 10142
A167: فيلا / يحيى قاسم | B167: 1425 | C167: 5000 | D167: محمد قاسم | E167: باقى الحساب خالص | J167: 2019-03-12 | K167: =SUMPRODUCT($C$8:C167-$H$8:H167) -> 15142
F168: المغاورى | G168: 2605 | H168: 15000 | I168: 12000عهدة ربط تامنى +843.5مكافاة اسلام+2156.5نقدا | J168: 2019-03-12 | K168: =SUMPRODUCT($C$8:C168-$H$8:H168) -> 142
K169: =SUMPRODUCT($C$8:C169-$H$8:H169) -> 142
K170: =SUMPRODUCT($C$8:C170-$H$8:H170) -> 142
K171: =SUMPRODUCT($C$8:C171-$H$8:H171) -> 142
K172: =SUMPRODUCT($C$8:C172-$H$8:H172) -> 142
K173: =SUMPRODUCT($C$8:C173-$H$8:H173) -> 142
K174: =SUMPRODUCT($C$8:C174-$H$8:H174) -> 142
K175: =SUMPRODUCT($C$8:C175-$H$8:H175) -> 142
K176: =SUMPRODUCT($C$8:C176-$H$8:H176) -> 142
K177: =SUMPRODUCT($C$8:C177-$H$8:H177) -> 142
K178: =SUMPRODUCT($C$8:C178-$H$8:H178) -> 142
K179: =SUMPRODUCT($C$8:C179-$H$8:H179) -> 142
K180: =SUMPRODUCT($C$8:C180-$H$8:H180) -> 142
K181: =SUMPRODUCT($C$8:C181-$H$8:H181) -> 142
K182: =SUMPRODUCT($C$8:C182-$H$8:H182) -> 142
K183: =SUMPRODUCT($C$8:C183-$H$8:H183) -> 142
K184: =SUMPRODUCT($C$8:C184-$H$8:H184) -> 142
K185: =SUMPRODUCT($C$8:C185-$H$8:H185) -> 142
K186: =SUMPRODUCT($C$8:C186-$H$8:H186) -> 142
K187: =SUMPRODUCT($C$8:C187-$H$8:H187) -> 142
K188: =SUMPRODUCT($C$8:C188-$H$8:H188) -> 142
K189: =SUMPRODUCT($C$8:C189-$H$8:H189) -> 142
K190: =SUMPRODUCT($C$8:C190-$H$8:H190) -> 142
K191: =SUMPRODUCT($C$8:C191-$H$8:H191) -> 142
K192: =SUMPRODUCT($C$8:C192-$H$8:H192) -> 142
K193: =SUMPRODUCT($C$8:C193-$H$8:H193) -> 142
K194: =SUMPRODUCT($C$8:C194-$H$8:H194) -> 142
K195: =SUMPRODUCT($C$8:C195-$H$8:H195) -> 142
K196: =SUMPRODUCT($C$8:C196-$H$8:H196) -> 142
K197: =SUMPRODUCT($C$8:C197-$H$8:H197) -> 142
K198: =SUMPRODUCT($C$8:C198-$H$8:H198) -> 142
K199: =SUMPRODUCT($C$8:C199-$H$8:H199) -> 142
K200: =SUMPRODUCT($C$8:C200-$H$8:H200) -> 142
K201: =SUMPRODUCT($C$8:C201-$H$8:H201) -> 142
K202: =SUMPRODUCT($C$8:C202-$H$8:H202) -> 142
K203: =SUMPRODUCT($C$8:C203-$H$8:H203) -> 142
K204: =SUMPRODUCT($C$8:C204-$H$8:H204) -> 142
... 1796 more rows

Sheet نقدية بلاستيك
A7: التاريخ | B7: رقم الاذن | C7: اسم العميل | D7: المبلغ | E7: اسم المندوب | F7: البيان | G7: رقم الاذن | H7: اسم المورد / العهدة | I7: المبلغ | J7: البيان | K7: الرصيد | L7: مجمع عملاء
C8: رصيد اول | D8: 190857 | K8: =SUMPRODUCT($D$8:D8-$I$8:I8) -> 190857
A9: 2019-02-01 | B9: 2927 | C9: بنك المصرى الخليجى | D9: 100000 | E9: المكتب | F9: من تحت حساب المديونية | K9: =SUMPRODUCT($D$8:D9-$I$8:I9) -> 290857
G10: 2769 | H10: بنك الاستثمار العربى | I10: 105000 | J10: ايدع فى بنك الاستثمار | K10: =SUMPRODUCT($D$8:D10-$I$8:I10) -> 185857
A11: 2019-03-01 | B11: 2928 | C11: ام سى اى | D11: 20000 | E11: المكتب | F11: ايدع فى بنك الاستثمار | K11: =SUMPRODUCT($D$8:D11-$I$8:I11) -> 205857
A12: 2019-03-01 | B12: 2929 | C12: بنك المصرى الخليجى | D12: 370000 | E12: المكتب | F12: صرف شيك | K12: =SUMPRODUCT($D$8:D12-$I$8:I12) -> 575857
A13: 2019-03-01 | B13: 2930 | C13: جارى م / خالد | D13: 40000 | E13: المكتب | F13: جارى م / خالد(الدكتورة) | K13: =SUMPRODUCT($D$8:D13-$I$8:I13) -> 615857
A14: 2019-03-01 | B14: 2931 | C14: جارى م / خالد | D14: 360000 | E14: المكتب | F14: جارى م / خالد(20000$بسعر18ج)د / شريف | K14: =SUMPRODUCT($D$8:D14-$I$8:I14) -> 975857
A15: 2019-03-01 | G15: 2770 | H15: بنك الاستثمار العربى | I15: 20000 | J15: ايدع ام سى اى | K15: =SUMPRODUCT($D$8:D15-$I$8:I15) -> 955857
A16: 2019-06-01 | B16: 2932 | C16: جارى م / خالد | D16: 25000 | E16: المكتب | F16: جارى م / خالد | K16: =SUMPRODUCT($D$8:D16-$I$8:I16) -> 980857
A17: 2019-06-01 | G17: 2771 | H17: المغاورى | I17: 8150 | J17: مكافات بمعرفة م / شريف | K17: =SUMPRODUCT($D$8:D17-$I$8:I17) -> 972707
A18: 2019-06-01 | G18: 2772 | H18: بنك الاستثمار العربى | I18: 570000 | J18: ايداع فى بنك الاستثمار | K18: =SUMPRODUCT($D$8:D18-$I$8:I18) -> 402707
A19: 2019-06-01 | G19: 2773 | H19: بنك الاستثمار العربى | I19: 360000 | J19: ايداع ما يعادل 20000$ بسعر18ج | K19: =SUMPRODUCT($D$8:D19-$I$8:I19) -> 42707
A20: 2019-06-01 | G20: 2774 | H20: بنك الاستثمار العربى | I20: 920000 | J20: ايداع فى بنك الاستثمار | K20: =SUMPRODUCT($D$8:D20-$I$8:I20) -> -877293
A21: 2019-06-01 | G21: 2775 | H21: بنك الاستثمار العربى | I21: 25000 | J21: ايداع فى بنك الاستثمار | K21: =SUMPRODUCT($D$8:D21-$I$8:I21) -> -902293
A22: 2019-06-01 | B22: 2933 | C22: كيم ارت | D22: 5000 | E22: حسن الباجورى | F22: مح تحت الحساب | K22: =SUMPRODUCT($D$8:D22-$I$8:I22) -> -897293
A23: 2019-06-01 | B23: 2934 | C23: بنك الامارت | D23: 270000 | E23: المكتب | F23: من تحت حساب المديونية | K23: =SUMPRODUCT($D$8:D23-$I$8:I23) -> -627293
A24: 2019-06-01 | B24: 2935 | C24: جارى أ / كريم | D24: 650000 | E24: المكتب | F24: من تحت حساب المديونية | K24: =SUMPRODUCT($D$8:D24-$I$8:I24) -> 22707
A25: 2019-08-01 | B25: 2936 | C25: النرويجية | D25: 2000 | E25: شريف السيد | F25: من تحت حساب المديونية | K25: =SUMPRODUCT($D$8:D25-$I$8:I25) -> 24707
A26: 2019-10-01 | B26: 2937 | C26: روبيرد خالد | D26: 19000 | E26: على حسن | F26: من تحت حساب المديونية | K26: =SUMPRODUCT($D$8:D26-$I$8:I26) -> 43707
A27: 30/1/2019 | B27: 2938 | C27: رد عهدة م / تامر طه | D27: 20765 | K27: =SUMPRODUCT($D$8:D27-$I$8:I27) -> 64472
A28: 2019-10-01 | B28: 2939 | C28: رد عهدة م / تامر طه | D28: 3500 | E28: المكتب | F28: من تحت حساب المديونية | K28: =SUMPRODUCT($D$8:D28-$I$8:I28) -> 67972
A29: 2019-10-01 | B29: 2940 | C29: الوطنية للمنسوجات | D29: 500 | F29: من تحت حساب المديونية | K29: =SUMPRODUCT($D$8:D29-$I$8:I29) -> 68472
A30: 2019-10-01 | B30: 2941 | C30: عملاء بيع هوالك | D30: 5000 | F30: من تحت حساب المديونية | K30: =SUMPRODUCT($D$8:D30-$I$8:I30) -> 73472
A31: 2019-10-01 | B31: 2942 | C31: عملاء بيع هوالك | D31: 7630 | E31: المصنع | F31: من تحت حساب المديونية | K31: =SUMPRODUCT($D$8:D31-$I$8:I31) -> 81102
A32: 2019-10-01 | G32: 2776 | H32: المغاورى | I32: 25185.5 | J32: مصاريف مصنع البلاستيك بمعرفة شيرين | K32: =SUMPRODUCT($D$8:D32-$I$8:I32) -> 55916.5
A33: 2019-10-01 | G33: 2777 | H33: عبد الله | I33: 680 | J33: شراء 170كجم كرتونبسعر4ج | K33: =SUMPRODUCT($D$8:D33-$I$8:I33) -> 55236.5
A34: 2019-10-01 | G34: 2778 | H34: سلف مؤقتة | I34: 5900 | J34: سلف مؤقتة | K34: =SUMPRODUCT($D$8:D34-$I$8:I34) -> 49336.5
A35: 2019-10-01 | G35: 2779 | H35: سلفة / محمد رمضان | I35: 3500 | J35: اخر دفعة من سلفة محمد رمضان | K35: =SUMPRODUCT($D$8:D35-$I$8:I35) -> 45836.5
A36: 2019-10-01 | G36: 2780 | H36: عهدة م / تامر | I36: 13130 | J36: من متحصلات | K36: =SUMPRODUCT($D$8:D36-$I$8:I36) -> 32706.5
A37: 14/1/2019 | B37: 2943 | C37: بنك الامارت | D37: 300000 | E37: المكتب | F37: من تحت حساب المديونية | K37: =SUMPRODUCT($D$8:D37-$I$8:I37) -> 332706.5
A38: 14/1/2019 | B38: 2944 | C38: ايليت | D38: 122357.75 | F38: صرف شيك | K38: =SUMPRODUCT($D$8:D38-$I$8:I38) -> 455064.25
A39: 14/1/2019 | B39: 2945 | C39: الحسين | D39: 646 | F39: ضرائب | K39: =SUMPRODUCT($D$8:D39-$I$8:I39) -> 455710.25
A40: 14/1/2019 | B40: 2946 | C40: لاغى | F40: من تحت حساب المديونية | K40: =SUMPRODUCT($D$8:D40-$I$8:I40) -> 455710.25
A41: 14/1/2019 | B41: 2947 | C41: ام سى اى | D41: 22455 | F41: من تحت حساب المديونية | K41: =SUMPRODUCT($D$8:D41-$I$8:I41) -> 478165.25
A42: 14/1/2019 | G42: 2781 | H42: الايمان لوجيستك | I42: 310000 | J42: ايداع فى بنك الامارات | K42: =SUMPRODUCT($D$8:D42-$I$8:I42) -> 168165.25
A43: 14/1/2019 | G43: 2782 | H43: الايمان لوجيستك | I43: 50000 | J43: ايداع فى بنك سى اى بى | K43: =SUMPRODUCT($D$8:D43-$I$8:I43) -> 118165.25
A44: 14/1/2019 | G44: 2783 | H44: لاغى | K44: =SUMPRODUCT($D$8:D44-$I$8:I44) -> 118165.25
A45: 14/1/2019 | G45: 2784 | H45: الحسين | I45: 12250 | J45: نصف طن | K45: =SUMPRODUCT($D$8:D45-$I$8:I45) -> 105915.25
A46: 14/1/2019 | G46: 2785 | H46: بنك الاستثمار العربى | I46: 22455 | J46: ايداع فى بنك الاستثمار | K46: =SUMPRODUCT($D$8:D46-$I$8:I46) -> 83460.25
A47: 14/1/2019 | B47: 2948 | C47: د / محمد الطيبى | D47: 825 | E47: المكتب | F47: من تحت حساب المديونية | K47: =SUMPRODUCT($D$8:D47-$I$8:I47) -> 84285.25
A48: 16/1/2019 | B48: 2949 | C48: بنك المصرى الخليجى | D48: 298000 | F48: من تحت حساب المديونية | K48: =SUMPRODUCT($D$8:D48-$I$8:I48) -> 382285.25
A49: 16/1/2019 | B49: 2950 | C49: بنك الامارت | D49: 115000 | F49: من تحت حساب المديونية | K49: =SUMPRODUCT($D$8:D49-$I$8:I49) -> 497285.25
A50: 16/1/2019 | G50: 2786 | H50: القادسية | I50: 141400 | J50: ايداع فى بنك سى اى بى | K50: =SUMPRODUCT($D$8:D50-$I$8:I50) -> 355885.25
A51: 16/1/2019 | G51: 2787 | H51: بنك الاستثمار العربى | I51: 316000 | J51: ايداع فى بنك الاستثمار | K51: =SUMPRODUCT($D$8:D51-$I$8:I51) -> 39885.25
A52: 19/1/2019 | B52: 2951 | C52: رد عهدة م / تامر طه | D52: 25806 | F52: تصفية مع شيرين | K52: =SUMPRODUCT($D$8:D52-$I$8:I52) -> 65691.25
A53: 19/1/2019 | B53: 2952 | C53: عملاء بيع هوالك | D53: 15000 | E53: المكتب | F53: من تحت حساب شراء خرز | K53: =SUMPRODUCT($D$8:D53-$I$8:I53) -> 80691.25
A54: 19/1/2019 | B54: 2953 | C54: بريمكس | D54: 10000 | E54: المكتب | F54: من تحت حساب المديونية | K54: =SUMPRODUCT($D$8:D54-$I$8:I54) -> 90691.25
A55: 19/1/2019 | G55: 2788 | H55: المغاورى | I55: 33816 | J55: مصاريف المصنع بمعرفة شيرين | K55: =SUMPRODUCT($D$8:D55-$I$8:I55) -> 56875.25
A56: 19/1/2019 | G56: 2789 | H56: سلف مؤقتة | I56: 3450 | K56: =SUMPRODUCT($D$8:D56-$I$8:I56) -> 53425.25
A57: 19/1/2019 | G57: 2790 | H57: عهدة م / تامر | I57: 25000 | J57: من متحصلات | K57: =SUMPRODUCT($D$8:D57-$I$8:I57) -> 28425.25
A58: 20/1/2019 | B58: 2954 | C58: ارت فيرت - حسين هاشم | D58: 9000 | E58: كارم | F58: من تحت حساب المديونية | K58: =SUMPRODUCT($D$8:D58-$I$8:I58) -> 37425.25
A59: 20/1/2019 | B59: 2955 | C59: الاخوه العرب | D59: 50000 | E59: المكتب | F59: من تحت حساب المديونية (ايداع فى بنك الامارات | K59: =SUMPRODUCT($D$8:D59-$I$8:I59) -> 87425.25
A60: 20/1/2019 | B60: 2956 | C60: الجرس | D60: 10150 | E60: كارم | F60: من تحت حساب المديونية | K60: =SUMPRODUCT($D$8:D60-$I$8:I60) -> 97575.25
A61: 20/1/2019 | B61: 2957 | C61: اسندرية لصناعة الزجاج | D61: 26962.5 | E61: المكتب | F61: من تحت حساب المديونية | K61: =SUMPRODUCT($D$8:D61-$I$8:I61) -> 124537.75
A62: 20/1/2019 | B62: 2958 | C62: اسندرية لصناعة الزجاج | D62: 28452.3 | E62: المكتب | F62: من تحت حساب المديونية | K62: =SUMPRODUCT($D$8:D62-$I$8:I62) -> 152990.05
A63: 20/1/2019 | B63: 2959 | C63: بريمكس | D63: 10000 | E63: على حسن | F63: من تحت حساب المديونية | K63: =SUMPRODUCT($D$8:D63-$I$8:I63) -> 162990.05
A64: 20/1/2019 | G64: 2791 | H64: بنك الامارات | I64: 50000 | J64: ايداع بمعرفة الاخوة العرب | K64: =SUMPRODUCT($D$8:D64-$I$8:I64) -> 112990.05
A65: 20/1/2019 | G65: 2792 | H65: اسكندرية لصناعة الزجاج | I65: 26962.5 | J65: شراء خامات | K65: =SUMPRODUCT($D$8:D65-$I$8:I65) -> 86027.55
A66: 20/1/2019 | G66: 2793 | H66: اسكندرية لصناعة الزجاج | I66: 28452.3 | J66: شراء خامات | K66: =SUMPRODUCT($D$8:D66-$I$8:I66) -> 57575.25
A67: 20/1/2019 | G67: 2794 | H67: جارى م / خالد | I67: 40000 | J67: جارى م / خالد (الدكتورة) | K67: =SUMPRODUCT($D$8:D67-$I$8:I67) -> 17575.25
A68: 20/1/2019 | G68: 2795 | H68: شركة النحاس المصرية | I68: 2690.5 | J68: تامين | K68: =SUMPRODUCT($D$8:D68-$I$8:I68) -> 14884.75
A69: 22/1/2019 | G69: 2796 | H69: الحسين | I69: 6480 | J69: 60 ك حبر ايطالى | K69: =SUMPRODUCT($D$8:D69-$I$8:I69) -> 8404.75
A70: 22/1/2019 | G70: 2797 | H70: عهدة م / تامر | I70: 5000 | J70: عهدة مالية | K70: =SUMPRODUCT($D$8:D70-$I$8:I70) -> 3404.75
A71: 23/1/2019 | B71: 2960 | C71: بنك المصرى الخليجى | D71: 100000 | E71: المكتب | F71: من تحت حساب المديونية | K71: =SUMPRODUCT($D$8:D71-$I$8:I71) -> 103404.75
A72: 23/1/2019 | B72: 2961 | C72: بنك المصرى الخليجى | D72: 687000 | E72: المكتب | F72: من تحت حساب المديونية | K72: =SUMPRODUCT($D$8:D72-$I$8:I72) -> 790404.75
A73: 23/1/2019 | B73: 2962 | C73: اكسبريس | D73: 24350.5 | E73: حسن الباجورى | F73: من تحت حساب المديونية | K73: =SUMPRODUCT($D$8:D73-$I$8:I73) -> 814755.25
A74: 23/1/2019 | G74: 2798 | H74: جارى كريم | I74: 650000 | J74: جارى ا / كريم | K74: =SUMPRODUCT($D$8:D74-$I$8:I74) -> 164755.25
A75: 27/1/2019 | B75: 2963 | C75: رد عهدة م / تامر طه | D75: 15470 | E75: المكتب | F75: من تحت حساب المديونية تصفية مع شيرين | K75: =SUMPRODUCT($D$8:D75-$I$8:I75) -> 180225.25
A76: 27/1/2019 | B76: 2964 | C76: عملاء بيع هوالك | D76: 8500 | E76: المكتب | F76: من تحت حساب المديونية | K76: =SUMPRODUCT($D$8:D76-$I$8:I76) -> 188725.25
A77: 27/1/2019 | B77: 2965 | C77: بنك الامارت | D77: 50000 | E77: المكتب | F77: من تحت حساب المديونية | K77: =SUMPRODUCT($D$8:D77-$I$8:I77) -> 238725.25
A78: 27/1/2019 | B78: 2966 | C78: بنك المصرى الخليجى | D78: 537000 | E78: المكتب | F78: من تحت حساب المديونية | K78: =SUMPRODUCT($D$8:D78-$I$8:I78) -> 775725.25
A79: 27/1/2019 | B79: 2967 | C79: جارى كريم | D79: 650000 | E79: المكتب | F79: من تحت حساب المديونية | K79: =SUMPRODUCT($D$8:D79-$I$8:I79) -> 1425725.25
A80: 27/1/2019 | G80: 2799 | H80: الفاروق | I80: 55000 | J80: شراء خامات | K80: =SUMPRODUCT($D$8:D80-$I$8:I80) -> 1370725.25
A81: 27/1/2019 | G81: 2800 | H81: الايمان لوجيستك | I81: 52155 | J81: مصاريف جمركية (ارضيات) | K81: =SUMPRODUCT($D$8:D81-$I$8:I81) -> 1318570.25
A82: 27/1/2019 | G82: 2801 | H82: المغاورى | I82: 33095 | J82: مصاريف المصنع بمعرفة شيرين | K82: =SUMPRODUCT($D$8:D82-$I$8:I82) -> 1285475.25
A83: 27/1/2019 | G83: 2802 | H83: سلف مؤقتة | I83: 3200 | K83: =SUMPRODUCT($D$8:D83-$I$8:I83) -> 1282275.25
A84: 27/1/2019 | G84: 2803 | H84: عبد الله | I84: 750 | J84: 187 ك كرتون | K84: =SUMPRODUCT($D$8:D84-$I$8:I84) -> 1281525.25
A85: 27/1/2019 | G85: 2804 | H85: عهدة م / تامر | I85: 15000 | J85: عهدة مالية | K85: =SUMPRODUCT($D$8:D85-$I$8:I85) -> 1266525.25
A86: 27/1/2019 | G86: 2805 | H86: سلفة / اميرة عبدة | I86: 700 | J86: سلفة على 4 اقساط | K86: =SUMPRODUCT($D$8:D86-$I$8:I86) -> 1265825.25
A87: 27/1/2019 | G87: 2806 | H87: عهدة م / تامر | I87: 8500 | J87: من متحصلات | K87: =SUMPRODUCT($D$8:D87-$I$8:I87) -> 1257325.25
A88: 30/1/2019 | B88: 2968 | C88: سلف مؤقتة | D88: 13450 | E88: المكتب | F88: من تحت حساب المديونية | K88: =SUMPRODUCT($D$8:D88-$I$8:I88) -> 1270775.25
A89: 30/1/2019 | B89: 2969 | C89: عشرا تكس | D89: 41475 | F89: من تحت حساب المديونية | K89: =SUMPRODUCT($D$8:D89-$I$8:I89) -> 1312250.25
A90: 30/1/2019 | B90: 2970 | C90: رد عهدة م / تامر طه | D90: 24784 | F90: من تحت حساب المديونية | K90: =SUMPRODUCT($D$8:D90-$I$8:I90) -> 1337034.25
A91: 30/1/2019 | B91: 2971 | C91: ايرادات اخرى | D91: 1500 | F91: من تحت حساب المديونية | K91: =SUMPRODUCT($D$8:D91-$I$8:I91) -> 1338534.25
A92: 30/1/2019 | B92: 2972 | C92: عملاء بيع هوالك | D92: 1590 | F92: من تحت حساب المديونية | K92: =SUMPRODUCT($D$8:D92-$I$8:I92) -> 1340124.25
A93: 30/1/2019 | B93: 2973 | C93: عملاء بيع هوالك | D93: 8000 | F93: من تحت حساب المديونية | K93: =SUMPRODUCT($D$8:D93-$I$8:I93) -> 1348124.25
A94: 30/1/2019 | B94: 2974 | C94: ارت فيرت - حسين هاشم | D94: 4000 | F94: من تحت حساب المديونية | K94: =SUMPRODUCT($D$8:D94-$I$8:I94) -> 1352124.25
A95: 31/1/2019 | G95: 2807 | H95: المغاورى | I95: 50000 | J95: عهدة مالية للضراءب | K95: =SUMPRODUCT($D$8:D95-$I$8:I95) -> 1302124.25
A96: 31/1/2019 | G96: 2808 | H96: المغاورى | I96: 118595 | J96: مرتبات مكتب و مصنع | K96: =SUMPRODUCT($D$8:D96-$I$8:I96) -> 1183529.25
A97: 31/1/2019 | G97: 2809 | H97: نيو سمارت | I97: 5593.5 | J97: ايداع فى بنكqnb | K97: =SUMPRODUCT($D$8:D97-$I$8:I97) -> 1177935.75
A98: 31/1/2019 | G98: 2810 | H98: بنك الاستثمار العربى | I98: 1030000 | J98: ايداع | K98: =SUMPRODUCT($D$8:D98-$I$8:I98) -> 147935.75
A99: 31/1/2019 | G99: 2811 | H99: السويدى | I99: 26770 | K99: =SUMPRODUCT($D$8:D99-$I$8:I99) -> 121165.75
A100: 31/1/2019 | G100: 2812 | H100: المغاورى | I100: 55079 | J100: مصاريف المصنع بمعرفة شيرين | K100: =SUMPRODUCT($D$8:D100-$I$8:I100) -> 66086.75
A101: 31/1/2019 | G101: 2813 | H101: سلف مؤقتة | I101: 500 | K101: =SUMPRODUCT($D$8:D101-$I$8:I101) -> 65586.75
A102: 31/1/2019 | G102: 2814 | H102: عبد الله | I102: 700 | J102: 175ك كرتونفى 4ج | K102: =SUMPRODUCT($D$8:D102-$I$8:I102) -> 64886.75
A103: 31/1/2019 | G103: 2815 | H103: عهدة م / تامر | I103: 3300 | K103: =SUMPRODUCT($D$8:D103-$I$8:I103) -> 61586.75
A104: 31/1/2019 | G104: 2816 | H104: الفاروق | I104: 55000 | K104: =SUMPRODUCT($D$8:D104-$I$8:I104) -> 6586.75
A105: 31/1/2019 | G105: 2817 | H105: جارى م / شريف | I105: 10000 | J105: من تحت حساب المديونية | K105: =SUMPRODUCT($D$8:D105-$I$8:I105) -> -3413.25
A106: 31/1/2019 | G106: 2818 | H106: عهدة م / تامر | I106: 7845 | J106: من تحت حساب المديونية | K106: =SUMPRODUCT($D$8:D106-$I$8:I106) -> -11258.25
A107: 31/1/2019 | G107: 2819 | H107: لاغى | J107: من تحت حساب المديونية | K107: =SUMPRODUCT($D$8:D107-$I$8:I107) -> -11258.25
A108: 31/1/2019 | G108: 2820 | H108: عهدة م / تامر | I108: 15090 | J108: من تحت حساب المديونية | K108: =SUMPRODUCT($D$8:D108-$I$8:I108) -> -26348.25
A109: 2019-05-02 | B109: 2975 | C109: فارا بروف | D109: 14960 | E109: على حسن | F109: من تحت حساب المديونية | K109: =SUMPRODUCT($D$8:D109-$I$8:I109) -> -11388.25
A110: 2019-05-02 | B110: 2976 | C110: بنك المصرى الخليجى | D110: 41000 | F110: من تحت حساب المديونية | K110: =SUMPRODUCT($D$8:D110-$I$8:I110) -> 29611.75
A111: 2019-02-05 | B111: 2977 | C111: شركة الهدى محمد النجار | D111: 2508000 | E111: المكتب | F111: من تحت حساب المديونية | K111: =SUMPRODUCT($D$8:D111-$I$8:I111) -> 2537611.75
A112: 2019-02-05 | B112: 2978 | C112: بنك المصرى الخليجى | D112: 480000 | E112: المكتب | F112: من تحت حساب المديونية | K112: =SUMPRODUCT($D$8:D112-$I$8:I112) -> 3017611.75
A113: 2019-02-05 | G113: 2821 | H113: انكانا لصناعة الاحبار | I113: 10955 | J113: من تحت حساب المديونية | K113: =SUMPRODUCT($D$8:D113-$I$8:I113) -> 3006656.75
A114: 2019-02-05 | G114: 2822 | H114: جارى كريم | I114: 650000 | J114: من تحت حساب المديونية | K114: =SUMPRODUCT($D$8:D114-$I$8:I114) -> 2356656.75
A115: 2019-02-06 | G115: 2823 | H115: بنك الاستثمار العربى | I115: 735000 | J115: من تحت حساب المديونية | K115: =SUMPRODUCT($D$8:D115-$I$8:I115) -> 1621656.75
A116: 2019-02-06 | G116: 2824 | H116: جارى م / خالد | I116: 500000 | J116: من تحت حساب المديونية | K116: =SUMPRODUCT($D$8:D116-$I$8:I116) -> 1121656.75
A117: 2019-02-06 | G117: 2825 | H117: شركة صدارة | I117: 315000 | J117: من تحت حساب المديونية | K117: =SUMPRODUCT($D$8:D117-$I$8:I117) -> 806656.75
A118: 2019-02-06 | G118: 2826 | H118: جارى فيبر | I118: 145000 | J118: من تحت حساب المديونية | K118: =SUMPRODUCT($D$8:D118-$I$8:I118) -> 661656.75
A119: 2019-02-06 | G119: 2827 | H119: المغاورى | I119: 355000 | J119: من تحت حساب المديونية | K119: =SUMPRODUCT($D$8:D119-$I$8:I119) -> 306656.75
A120: 2019-02-07 | B120: 2979 | C120: رد عهدة م / تامر طه | D120: 15764.75 | F120: من تحت حساب المديونية | K120: =SUMPRODUCT($D$8:D120-$I$8:I120) -> 322421.5
A121: 2019-02-07 | B121: 2980 | C121: عملاء بيع هوالك | D121: 4000 | F121: من تحت حساب المديونية | K121: =SUMPRODUCT($D$8:D121-$I$8:I121) -> 326421.5
A122: 2019-02-07 | B122: 2981 | C122: كيم ارت | D122: 10000 | E122: المكتب | F122: من تحت حساب المديونية | K122: =SUMPRODUCT($D$8:D122-$I$8:I122) -> 336421.5
A123: 2019-02-07 | B123: 2982 | C123: بريمكس | D123: 15000 | E123: المكتب | F123: من تحت حساب المديونية | K123: =SUMPRODUCT($D$8:D123-$I$8:I123) -> 351421.5
A124: 2019-02-07 | G124: 2828 | H124: سلف مؤقتة | I124: 1100 | J124: من تحت حساب المديونية | K124: =SUMPRODUCT($D$8:D124-$I$8:I124) -> 350321.5
A125: 2019-02-07 | G125: 2829 | H125: المغاورى | I125: 29350.5 | J125: من تحت حساب المديونية | K125: =SUMPRODUCT($D$8:D125-$I$8:I125) -> 320971
A126: 2019-02-07 | G126: 2830 | H126: عهدة م / تامر | I126: 8745 | J126: من تحت حساب المديونية | K126: =SUMPRODUCT($D$8:D126-$I$8:I126) -> 312226
A127: 2019-02-07 | G127: 2831 | H127: عهدة م / تامر | I127: 4000 | J127: من تحت حساب المديونية | K127: =SUMPRODUCT($D$8:D127-$I$8:I127) -> 308226
A128: 2019-02-07 | G128: 2832 | H128: بنك الامارات | I128: 15000 | J128: من تحت حساب المديونية | K128: =SUMPRODUCT($D$8:D128-$I$8:I128) -> 293226
A129: 2019-02-10 | B129: 2983 | C129: ايليت | D129: 34170.5 | F129: من تحت حساب المديونية | K129: =SUMPRODUCT($D$8:D129-$I$8:I129) -> 327396.5
A130: 2019-02-10 | B130: 2984 | C130: ايليت | D130: 46777.5 | F130: من تحت حساب المديونية | K130: =SUMPRODUCT($D$8:D130-$I$8:I130) -> 374174
A131: 2019-02-13 | B131: 2985 | C131: رد عهدة م / تامر طه | D131: 31130 | F131: من تحت حساب المديونية | K131: =SUMPRODUCT($D$8:D131-$I$8:I131) -> 405304
A132: 2019-02-13 | B132: 2986 | C132: على قماح | D132: 13750 | F132: من تحت حساب المديونية | K132: =SUMPRODUCT($D$8:D132-$I$8:I132) -> 419054
A133: 2019-02-13 | B133: 2987 | C133: عملاء بيع هوالك | D133: 18000 | E133: مصنع البلاستيك | F133: من تحت حساب المديونية | K133: =SUMPRODUCT($D$8:D133-$I$8:I133) -> 437054
A134: 2019-02-13 | B134: 2988 | C134: كيم ارت | D134: 10000 | E134: مصنع البلاستيك | F134: من تحت حساب المديونية | K134: =SUMPRODUCT($D$8:D134-$I$8:I134) -> 447054
A135: 2019-02-10 | G135: 2833 | H135: الاسكندرية لصناعة البوليمر | I135: 45000 | J135: من تحت حساب المديونية | K135: =SUMPRODUCT($D$8:D135-$I$8:I135) -> 402054
A136: 2019-02-10 | G136: 2834 | H136: المغاورى | I136: 30000 | J136: من تحت حساب المديونية | K136: =SUMPRODUCT($D$8:D136-$I$8:I136) -> 372054
A137: 2019-02-10 | G137: 2835 | H137: المغاورى | I137: 2110 | J137: من تحت حساب المديونية | K137: =SUMPRODUCT($D$8:D137-$I$8:I137) -> 369944
A138: 2019-02-10 | G138: 2836 | H138: بنك الاستثمار العربى | I138: 84000 | J138: من تحت حساب المديونية | K138: =SUMPRODUCT($D$8:D138-$I$8:I138) -> 285944
A139: 2019-02-12 | G139: 2837 | H139: الفاروق | I139: 110000 | J139: من تحت حساب المديونية | K139: =SUMPRODUCT($D$8:D139-$I$8:I139) -> 175944
A140: 2019-02-12 | G140: 2838 | H140: المغاورى | I140: 18605 | J140: من تحت حساب المديونية | K140: =SUMPRODUCT($D$8:D140-$I$8:I140) -> 157339
A141: 2019-02-13 | G141: 2839 | H141: سلف مؤقتة | I141: 2635 | J141: من تحت حساب المديونية | K141: =SUMPRODUCT($D$8:D141-$I$8:I141) -> 154704
A142: 2019-02-13 | G142: 2840 | H142: المغاورى | I142: 27595 | J142: من تحت حساب المديونية | K142: =SUMPRODUCT($D$8:D142-$I$8:I142) -> 127109
A143: 2019-02-13 | G143: 2841 | H143: سلفة / محمود حمروش | I143: 1000 | J143: من تحت حساب المديونية | K143: =SUMPRODUCT($D$8:D143-$I$8:I143) -> 126109
A144: 2019-02-13 | G144: 2842 | H144: عهدة م / تامر | I144: 41750 | J144: من تحت حساب المديونية | K144: =SUMPRODUCT($D$8:D144-$I$8:I144) -> 84359
A145: 2019-02-13 | G145: 2843 | H145: المغاورى | I145: 14000 | J145: من تحت حساب المديونية | K145: =SUMPRODUCT($D$8:D145-$I$8:I145) -> 70359
A146: 2019-02-13 | G146: 2844 | H146: بنك الامارات | I146: 18787 | J146: من تحت حساب المديونية | K146: =SUMPRODUCT($D$8:D146-$I$8:I146) -> 51572
A147: 2019-02-13 | G147: 2845 | H147: الايمان لوجيستك | I147: 20726 | J147: من تحت حساب المديونية | K147: =SUMPRODUCT($D$8:D147-$I$8:I147) -> 30846
A148: 2019-02-17 | B148: 2989 | C148: بنك الامارت | D148: 108000 | E148: المكتب | F148: من تحت حساب المديونية | K148: =SUMPRODUCT($D$8:D148-$I$8:I148) -> 138846
A149: 2019-02-17 | B149: 2990 | C149: ميدو للدهانات | D149: 18787 | E149: المكتب | F149: من تحت حساب المديونية | K149: =SUMPRODUCT($D$8:D149-$I$8:I149) -> 157633
A150: 2019-02-18 | G150: 2846 | H150: السويدى | I150: 63670 | J150: من تحت حساب المديونية | K150: =SUMPRODUCT($D$8:D150-$I$8:I150) -> 93963
A151: 2019-02-19 | B151: 2991 | C151: بريمكس | D151: 15000 | E151: المكتب | F151: من تحت حساب المديونية | K151: =SUMPRODUCT($D$8:D151-$I$8:I151) -> 108963
A152: 2019-02-19 | G152: 2847 | H152: بنك الامارات | I152: 15000 | J152: من تحت حساب المديونية | K152: =SUMPRODUCT($D$8:D152-$I$8:I152) -> 93963
A153: 2019-02-19 | B153: 2992 | C153: باسيف | D153: 99948.5 | E153: المكتب | F153: صرف شيك | K153: =SUMPRODUCT($D$8:D153-$I$8:I153) -> 193911.5
A154: 2019-02-19 | B154: 2993 | C154: بنك المصرى الخليجى | D154: 300000 | F154: من تحت حساب المديونية | K154: =SUMPRODUCT($D$8:D154-$I$8:I154) -> 493911.5
A155: 2019-02-19 | B155: 2994 | C155: بنك الامارت | D155: 33000 | F155: من تحت حساب المديونية | K155: =SUMPRODUCT($D$8:D155-$I$8:I155) -> 526911.5
A156: 2019-02-19 | G156: 2848 | H156: جارى م / خالد | I156: 493000 | J156: من تحت حساب المديونية | K156: =SUMPRODUCT($D$8:D156-$I$8:I156) -> 33911.5
A157: 2019-02-21 | B157: 2995 | C157: ام سى اى | D157: 30000 | F157: من تحت حساب المديونية | K157: =SUMPRODUCT($D$8:D157-$I$8:I157) -> 63911.5
A158: 2019-02-21 | B158: 2996 | C158: رد عهدة م / تامر طه | D158: 42160.5 | F158: من تحت حساب المديونية | K158: =SUMPRODUCT($D$8:D158-$I$8:I158) -> 106072
A159: 2019-02-21 | B159: 2997 | C159: ثروت العامرية | D159: 760 | F159: من تحت حساب المديونية | K159: =SUMPRODUCT($D$8:D159-$I$8:I159) -> 106832
A160: 2019-02-21 | B160: 2998 | C160: روبيرد خالد | D160: 19000 | F160: من تحت حساب المديونية | K160: =SUMPRODUCT($D$8:D160-$I$8:I160) -> 125832
A161: 2019-02-21 | B161: 2999 | C161: عملاء بيع هوالك | D161: 13000 | F161: من تحت حساب المديونية | K161: =SUMPRODUCT($D$8:D161-$I$8:I161) -> 138832
A162: 2019-02-21 | B162: 3000 | C162: د / شريف الطيبى | D162: 2800 | F162: من تحت حساب المديونية | K162: =SUMPRODUCT($D$8:D162-$I$8:I162) -> 141632
A163: 2019-02-21 | B163: 3001 | C163: ايرادات اخرى | D163: 540 | F163: من تحت حساب المديونية | K163: =SUMPRODUCT($D$8:D163-$I$8:I163) -> 142172
A164: 2019-02-21 | G164: 2849 | H164: بنك الاستثمار العربى | I164: 30000 | J164: من تحت حساب المديونية | K164: =SUMPRODUCT($D$8:D164-$I$8:I164) -> 112172
A165: 2019-02-21 | G165: 2850 | H165: المغاورى | I165: 35415.5 | J165: من تحت حساب المديونية | K165: =SUMPRODUCT($D$8:D165-$I$8:I165) -> 76756.5
A166: 2019-02-21 | G166: 2851 | H166: سلف مؤقتة | I166: 3890 | J166: من تحت حساب المديونية | K166: =SUMPRODUCT($D$8:D166-$I$8:I166) -> 72866.5
A167: 2019-02-21 | G167: 2852 | H167: ثروت العامرية | I167: 2940 | J167: من تحت حساب المديونية | K167: =SUMPRODUCT($D$8:D167-$I$8:I167) -> 69926.5
A168: 2019-02-21 | G168: 2853 | H168: ثروت العامرية | I168: 760 | J168: من تحت حساب المديونية | K168: =SUMPRODUCT($D$8:D168-$I$8:I168) -> 69166.5
A169: 2019-02-21 | G169: 2854 | H169: عهدة م / تامر | I169: 32000 | J169: من تحت حساب المديونية | K169: =SUMPRODUCT($D$8:D169-$I$8:I169) -> 37166.5
A170: 2019-02-21 | G170: 2855 | H170: جارى م / شريف | I170: 10000 | J170: من تحت حساب المديونية | K170: =SUMPRODUCT($D$8:D170-$I$8:I170) -> 27166.5
A171: 2019-02-26 | B171: 3002 | C171: كيم ارت | D171: 7700 | E171: الحسن الباجورى | F171: من تحت حساب المديونية | K171: =SUMPRODUCT($D$8:D171-$I$8:I171) -> 34866.5
A172: 2019-02-27 | B172: 3003 | C172: بنك المصرى الخليجى | D172: 685000 | E172: المكتب | F172: من تحت حساب المديونية | K172: =SUMPRODUCT($D$8:D172-$I$8:I172) -> 719866.5
A173: 2019-02-27 | B173: 3004 | C173: سلف مؤقتة | D173: 8125 | E173: المكتب | F173: من تحت حساب المديونية | K173: =SUMPRODUCT($D$8:D173-$I$8:I173) -> 727991.5
A174: 2019-02-27 | B174: 3005 | C174: الحسين | D174: 164.25 | E174: المكتب | F174: من تحت حساب المديونية | K174: =SUMPRODUCT($D$8:D174-$I$8:I174) -> 728155.75
A175: 2019-02-27 | G175: 2856 | H175: جارى فيبر | I175: 1200 | J175: من تحت حساب المديونية | K175: =SUMPRODUCT($D$8:D175-$I$8:I175) -> 726955.75
A176: 2019-02-27 | G176: 2857 | H176: ابوللوكيم | I176: 14150 | J176: من تحت حساب المديونية | K176: =SUMPRODUCT($D$8:D176-$I$8:I176) -> 712805.75
A177: 2019-02-27 | G177: 2858 | H177: جارى م / خالد | I177: 450000 | J177: من تحت حساب المديونية | K177: =SUMPRODUCT($D$8:D177-$I$8:I177) -> 262805.75
A178: 2019-02-27 | G178: 2859 | H178: بنك الامارات | I178: 24000 | J178: من تحت حساب المديونية | K178: =SUMPRODUCT($D$8:D178-$I$8:I178) -> 238805.75
A179: 2019-02-27 | G179: 2860 | H179: بنك الامارات | I179: 25000 | J179: من تحت حساب المديونية | K179: =SUMPRODUCT($D$8:D179-$I$8:I179) -> 213805.75
A180: 2019-02-27 | G180: 2861 | H180: المغاورى | I180: 26737.5 | J180: من تحت حساب المديونية | K180: =SUMPRODUCT($D$8:D180-$I$8:I180) -> 187068.25
A181: 2019-02-27 | G181: 2862 | H181: بنك الاستثمار العربى | I181: 12000 | J181: من تحت حساب المديونية | K181: =SUMPRODUCT($D$8:D181-$I$8:I181) -> 175068.25
A182: 2019-02-27 | G182: 2863 | H182: الحسين | I182: 5950 | J182: من تحت حساب المديونية | K182: =SUMPRODUCT($D$8:D182-$I$8:I182) -> 169118.25
A183: 2019-02-28 | B183: 3006 | C183: النرويجية | D183: 2000 | E183: المكتب | F183: من تحت حساب المديونية | K183: =SUMPRODUCT($D$8:D183-$I$8:I183) -> 171118.25
A184: 2019-02-28 | B184: 3007 | C184: رد عهدة م / تامر طه | D184: 33100.5 | E184: المكتب | F184: من تحت حساب المديونية | K184: =SUMPRODUCT($D$8:D184-$I$8:I184) -> 204218.75
A185: 2019-02-28 | B185: 3008 | C185: عملاء بيع هوالك | D185: 14000 | E185: المكتب | F185: من تحت حساب المديونية | K185: =SUMPRODUCT($D$8:D185-$I$8:I185) -> 218218.75
A186: 2019-02-28 | B186: 3009 | C186: عملاء بيع هوالك | D186: 17000 | E186: المكتب | F186: من تحت حساب المديونية | K186: =SUMPRODUCT($D$8:D186-$I$8:I186) -> 235218.75
A187: 2019-02-28 | B187: 3010 | C187: ارت فيرت - حسين هاشم | D187: 4050 | E187: المكتب | F187: من تحت حساب المديونية | K187: =SUMPRODUCT($D$8:D187-$I$8:I187) -> 239268.75
A188: 2019-02-28 | B188: 3011 | C188: ايرادات اخرى | D188: 750 | E188: المكتب | F188: من تحت حساب المديونية | K188: =SUMPRODUCT($D$8:D188-$I$8:I188) -> 240018.75
A189: 2019-02-28 | G189: 2864 | H189: المغاورى | I189: 146765 | J189: من تحت حساب المديونية | K189: =SUMPRODUCT($D$8:D189-$I$8:I189) -> 93253.75
A190: 2019-02-28 | G190: 2865 | H190: المغاورى | I190: 32850.5 | J190: من تحت حساب المديونية | K190: =SUMPRODUCT($D$8:D190-$I$8:I190) -> 60403.25
A191: 2019-02-28 | G191: 2866 | H191: لاغى | J191: من تحت حساب المديونية | K191: =SUMPRODUCT($D$8:D191-$I$8:I191) -> 60403.25
A192: 2019-02-28 | G192: 2867 | H192: عهدة م / تامر | I192: 35800 | J192: من تحت حساب المديونية | K192: =SUMPRODUCT($D$8:D192-$I$8:I192) -> 24603.25
A193: 2019-03-03 | B193: 3012 | C193: بنك الامارت | D193: 182000 | F193: من تحت حساب المديونية | K193: =SUMPRODUCT($D$8:D193-$I$8:I193) -> 206603.25
A194: 2019-03-03 | B194: 3013 | C194: بنك المصرى الخليجى | D194: 300000 | F194: من تحت حساب المديونية | K194: =SUMPRODUCT($D$8:D194-$I$8:I194) -> 506603.25
A195: 3019-03-03 | G195: 2868 | H195: القادسية | I195: 106584 | J195: من تحت حساب المديونية | K195: =SUMPRODUCT($D$8:D195-$I$8:I195) -> 400019.25
A196: 2019-03-04 | B196: 3014 | C196: اكسبريس | D196: 3210.25 | F196: من تحت حساب المديونية | K196: =SUMPRODUCT($D$8:D196-$I$8:I196) -> 403229.5
A197: 3019-03-04 | G197: 2869 | H197: ابو ريدة | I197: 30000 | J197: من تحت حساب المديونية | K197: =SUMPRODUCT($D$8:D197-$I$8:I197) -> 373229.5
A198: 3019-03-04 | G198: 2870 | H198: ايميرود ايجيبت | I198: 121029 | J198: من تحت حساب المديونية | K198: =SUMPRODUCT($D$8:D198-$I$8:I198) -> 252200.5
A199: 3019-03-04 | G199: 2871 | H199: الحسين | I199: 4320 | J199: من تحت حساب المديونية | K199: =SUMPRODUCT($D$8:D199-$I$8:I199) -> 247880.5
A200: 2019-03-05 | B200: 3015 | C200: كيم ارت | D200: 10000 | E200: الحسن الباجورى | F200: من تحت حساب المديونية | K200: =SUMPRODUCT($D$8:D200-$I$8:I200) -> 257880.5
A201: 2019-03-05 | B201: 3016 | C201: ايليت | D201: 149762.25 | F201: من تحت حساب المديونية | K201: =SUMPRODUCT($D$8:D201-$I$8:I201) -> 407642.75
A202: 2019-03-05 | B202: 3017 | C202: ايليت | D202: 50052.78 | F202: من تحت حساب المديونية | K202: =SUMPRODUCT($D$8:D202-$I$8:I202) -> 457695.53
A203: 2019-03-05 | B203: 3018 | C203: ايليت | D203: 62187.47 | F203: من تحت حساب المديونية | K203: =SUMPRODUCT($D$8:D203-$I$8:I203) -> 519883
A204: 3019-03-05 | G204: 2872 | H204: الفاروق | I204: 110000 | J204: من تحت حساب المديونية | K204: =SUMPRODUCT($D$8:D204-$I$8:I204) -> 409883
A205: 3019-03-05 | G205: 2873 | H205: جارى م / شريف | I205: 10000 | J205: من تحت حساب المديونية | K205: =SUMPRODUCT($D$8:D205-$I$8:I205) -> 399883
A206: 2019-03-06 | B206: 3019 | C206: بريمكس | D206: 10000 | F206: من تحت حساب المديونية | K206: =SUMPRODUCT($D$8:D206-$I$8:I206) -> 409883
... 1794 more rows

Sheet أ د فيبر
K3: كشف اوراق دفع الفيبر
A5: اسم العميل | B5: رقم الاذن | C5: تاريخ الاستحقاق | D5: القيمة | E5: رقم الشيك | F5: تاريخ الاستلام | H5: اسم البنك | I5: حالة الشيك | J5: الملاحظات
A6: ثروت محمد السيد | B6: 125 | C6: 2019-02-01 | D6: 80000 | E6: 14038265535 | F6: 2019-02-01 | H6: بنك الامارات دبى NBD | I6: محصل | J6: تمويل خزينة
A7: ثروت محمد السيد | B7: 126 | C7: 2019-08-01 | D7: 50000 | E7: 1403856554 | F7: 2019-08-01 | H7: بنك الامارات دبى NBD | I7: محصل | J7: تمويل خزينة
A8: صندوق اعانات الطوارىء للعمال | B8: 127 | C8: 2019-12-01 | D8: 143 | E8: 1403856555 | F8: 2019-12-01 | H8: بنك الامارات دبى NBD | I8: محصل | J8: تمويل خزينة
A9: ثروت محمد السيد | B9: 128 | C9: 14/1/2019 | D9: 33000 | E9: 140356556 | F9: 14-1-2019 | H9: بنك الامارات دبى NBD | I9: محصل | J9: تمويل خزينة
A10: ثروت محمد السيد | B10: 129 | C10: 28/1/2019 | D10: 35000 | E10: 1403856557 | F10: 28/1/2019 | H10: بنك الامارات دبى NBD | I10: محصل | J10: تمويل خزينة
A11: ثروت محمد السيد | B11: 130 | C11: 30/1/2019 | D11: 50000 | E11: 1403856558 | F11: 30/1/2019 | H11: بنك الامارات دبى NBD | I11: محصل | J11: تمويل خزينة
A12: ثروت محمد السيد | B12: 131 | C12: 2019-03-02 | D12: 10500 | E12: 1402935439 | F12: 2019-03-02 | H12: بنك الامارات دبى NBD | I12: محصل | J12: تمويل خزينة (شيك وطنية)
A13: ثروت محمد السيد | B13: 132 | C13: 2019-05-02 | D13: 40000 | E13: 1402935440 | F13: 2019-03-02 | H13: بنك الامارات دبى NBD | I13: محصل | J13: تمويل خزينة (شيك وطنية)
A14: صندوق اعانات الطوارىء للعمال | B14: 133 | C14: 2019-09-02 | D14: 153 | E14: 1403856559 | F14: 2019-09-02 | H14: بنك الامارات دبى NBD | I14: محصل | J14: تمويل خزينة | O14: بنك الامارات دبى NBD | P14: يصرف نقدا | Q14: تمويل خزينة | S14: ث
A15: ثروت محمد السيد | B15: 134 | C15: 14/2/2019 | D15: 70000 | E15: 1403856560 | F15: 2019-09-02 | H15: بنك الامارات دبى NBD | I15: محصل | J15: تمويل خزينة
A16: ثروت محمد السيد | B16: 135 | C16: 24/2/2019 | D16: 60000 | E16: 1403856561 | F16: 24/2/2019 | H16: بنك الامارات دبى NBD | I16: محصل | J16: تمويل خزينة
A17: ثروت محمد السيد | B17: 136 | C17: 25/2/2019 | D17: 50000 | E17: 1403856562 | F17: 25/2/2019 | H17: بنك الامارات دبى NBD | I17: محصل | J17: تمويل خزينة

Sheet أ د بلاستيك
A5: اسم العميل | B5: رقم الاذن | C5: تاريخ الاستحقاق | D5: القيمة | E5: رقم الشيك | F5: تاريخ الاستلام | H5: اسم البنك | I5: حالة الشيك | J5: الملاحظات
A6: ثروت محمد السيد | B6: 2382 | C6: 2019-02-01 | D6: 100000 | E6: 1241 | F6: 2019-02-01 | H6: بنك المصرى الخليجى EGB | I6: يصرف نقدا | J6: تمويل خزينة | N6: =IFERROR(DATEDIF(TODAY(),F6,"d"),"") -> 
A7: لاغى | B7: 2383 | C7: 2019-02-01 | D7: 0 | J7: لاغى
A8: ثروت محمد السيد | B8: 2384 | C8: 2019-02-01 | D8: 270000 | E8: 1403856421 | F8: 2019-02-01 | H8: بنك الامارات دبى NBD | I8: يصرف نقدا | J8: تمويل خزينة
A9: ثروت محمد السيد | B9: 2385 | C9: 2019-02-01 | D9: 370000 | E9: 1243 | F9: 2019-02-01 | H9: بنك المصرى الخليجى EGB | I9: يصرف نقدا | J9: تمويل خزينة
A10: محمد ممدوح يوسف | B10: 2386 | C10: 2019-09-01 | D10: 55000 | E10: 1429166 | F10: 2019-09-01 | H10: بنك الاستثمار العربى | I10: تحت التحصيل | J10: شراء خامات | N10: 172
A11: محمود حسنى عبد الغنى سليمان | B11: 2387 | C11: 31/1/2019 | D11: 20000 | E11: 1244 | F11: 2019-10-01 | H11: بنك المصرى الخليجى EGB | I11: مؤجل | J11: شراء خامات | N11: 202
A12: اشيلية لخدمات الطباعة | B12: 2388 | C12: 31/1/2019 | D12: 25433 | E12: 1245 | F12: 2019-10-01 | H12: بنك المصرى الخليجى EGB | I12: مؤجل | J12: شراء خامات | N12: 202
A13: جنرال سيلندرز | B13: 2389 | C13: 31/1/2019 | D13: 15368 | E13: 1246 | F13: 2019-10-01 | H13: بنك المصرى الخليجى EGB | I13: مؤجل | J13: شراء خامات | N13: 202
A14: محمود حسنى عبد الغنى سليمان | B14: 2390 | C14: 15/2/2019 | D14: 19000 | E14: 1247 | F14: 2019-10-01 | H14: بنك المصرى الخليجى EGB | I14: مؤجل | J14: شراء خامات | N14: 202
N70: =IFERROR(DATEDIF(TODAY(),F70,"d"),"") -> 
N134: =IFERROR(DATEDIF(TODAY(),F134,"d"),"") -> 
N198: =IFERROR(DATEDIF(TODAY(),F198,"d"),"") -> 
N262: =IFERROR(DATEDIF(TODAY(),F262,"d"),"") -> 
N326: =IFERROR(DATEDIF(TODAY(),F326,"d"),"") -> 
N390: =IFERROR(DATEDIF(TODAY(),F390,"d"),"") -> 
N454: =IFERROR(DATEDIF(TODAY(),F454,"d"),"") -> 
N518: =IFERROR(DATEDIF(TODAY(),F518,"d"),"") -> 
N582: =IFERROR(DATEDIF(TODAY(),F582,"d"),"") -> 
N646: =IFERROR(DATEDIF(TODAY(),F646,"d"),"") -> 
N710: =IFERROR(DATEDIF(TODAY(),F710,"d"),"") -> 
N774: =IFERROR(DATEDIF(TODAY(),F774,"d"),"") -> 
N838: =IFERROR(DATEDIF(TODAY(),F838,"d"),"") -> 
N902: =IFERROR(DATEDIF(TODAY(),F902,"d"),"") -> 
N966: =IFERROR(DATEDIF(TODAY(),F966,"d"),"") -> 
N1030: =IFERROR(DATEDIF(TODAY(),F1030,"d"),"") -> 
N1094: =IFERROR(DATEDIF(TODAY(),F1094,"d"),"") -> 
N1158: =IFERROR(DATEDIF(TODAY(),F1158,"d"),"") -> 
N1222: =IFERROR(DATEDIF(TODAY(),F1222,"d"),"") -> 
N1286: =IFERROR(DATEDIF(TODAY(),F1286,"d"),"") -> 
N1350: =IFERROR(DATEDIF(TODAY(),F1350,"d"),"") -> 
N1414: =IFERROR(DATEDIF(TODAY(),F1414,"d"),"") -> 
N1478: =IFERROR(DATEDIF(TODAY(),F1478,"d"),"") -> 
N1542: =IFERROR(DATEDIF(TODAY(),F1542,"d"),"") -> 
N1606: =IFERROR(DATEDIF(TODAY(),F1606,"d"),"") -> 
N1670: =IFERROR(DATEDIF(TODAY(),F1670,"d"),"") -> 
N1734: =IFERROR(DATEDIF(TODAY(),F1734,"d"),"") -> 
N1798: =IFERROR(DATEDIF(TODAY(),F1798,"d"),"") -> 
N1862: =IFERROR(DATEDIF(TODAY(),F1862,"d"),"") -> 
N1926: =IFERROR(DATEDIF(TODAY(),F1926,"d"),"") -> 
N1990: =IFERROR(DATEDIF(TODAY(),F1990,"d"),"") -> 

Sheet كشف بنك
A6: شيكات مرسلها للتحصيل | G6: شيكات مرسلها لخصم
A7: التاريخ | B7: رقم الاذن | C7: البيان | D7: القيمة | E7: رقم الشيك | F7: رقم الاذن | G7: البيان | H7: القيمة | I7: رقم الشيك | J7: مصاريف | K7: اجمالى السحب | L7: الرصيد
A8: 2019-02-28 | C8: رصيد اول | D8: 29990 | L8: =SUMPRODUCT($D$8:D8-$H$8:H8) -> 29990
L9: =SUMPRODUCT($D$8:D9-$H$8:H9) -> 29990
L10: =SUMPRODUCT($D$8:D10-$H$8:H10) -> 29990
L11: =SUMPRODUCT($D$8:D11-$H$8:H11) -> 29990
L12: =SUMPRODUCT($D$8:D12-$H$8:H12) -> 29990
L13: =SUMPRODUCT($D$8:D13-$H$8:H13) -> 29990
L14: =SUMPRODUCT($D$8:D14-$H$8:H14) -> 29990
L15: =SUMPRODUCT($D$8:D15-$H$8:H15) -> 29990
L16: =SUMPRODUCT($D$8:D16-$H$8:H16) -> 29990
L17: =SUMPRODUCT($D$8:D17-$H$8:H17) -> 29990
L18: =SUMPRODUCT($D$8:D18-$H$8:H18) -> 29990
L19: =SUMPRODUCT($D$8:D19-$H$8:H19) -> 29990
L20: =SUMPRODUCT($D$8:D20-$H$8:H20) -> 29990
L21: =SUMPRODUCT($D$8:D21-$H$8:H21) -> 29990
L22: =SUMPRODUCT($D$8:D22-$H$8:H22) -> 29990
L23: =SUMPRODUCT($D$8:D23-$H$8:H23) -> 29990
L24: =SUMPRODUCT($D$8:D24-$H$8:H24) -> 29990
L25: =SUMPRODUCT($D$8:D25-$H$8:H25) -> 29990
L26: =SUMPRODUCT($D$8:D26-$H$8:H26) -> 29990
L27: =SUMPRODUCT($D$8:D27-$H$8:H27) -> 29990
L28: =SUMPRODUCT($D$8:D28-$H$8:H28) -> 29990
L29: =SUMPRODUCT($D$8:D29-$H$8:H29) -> 29990
L30: =SUMPRODUCT($D$8:D30-$H$8:H30) -> 29990
L31: =SUMPRODUCT($D$8:D31-$H$8:H31) -> 29990
L32: =SUMPRODUCT($D$8:D32-$H$8:H32) -> 29990
L33: =SUMPRODUCT($D$8:D33-$H$8:H33) -> 29990
L34: =SUMPRODUCT($D$8:D34-$H$8:H34) -> 29990
L35: =SUMPRODUCT($D$8:D35-$H$8:H35) -> 29990
L36: =SUMPRODUCT($D$8:D36-$H$8:H36) -> 29990
L37: =SUMPRODUCT($D$8:D37-$H$8:H37) -> 29990
L38: =SUMPRODUCT($D$8:D38-$H$8:H38) -> 29990
L39: =SUMPRODUCT($D$8:D39-$H$8:H39) -> 29990
L40: =SUMPRODUCT($D$8:D40-$H$8:H40) -> 29990
L41: =SUMPRODUCT($D$8:D41-$H$8:H41) -> 29990
L42: =SUMPRODUCT($D$8:D42-$H$8:H42) -> 29990
L43: =SUMPRODUCT($D$8:D43-$H$8:H43) -> 29990
L44: =SUMPRODUCT($D$8:D44-$H$8:H44) -> 29990
L45: =SUMPRODUCT($D$8:D45-$H$8:H45) -> 29990
L46: =SUMPRODUCT($D$8:D46-$H$8:H46) -> 29990
L47: =SUMPRODUCT($D$8:D47-$H$8:H47) -> 29990
L48: =SUMPRODUCT($D$8:D48-$H$8:H48) -> 29990
L49: =SUMPRODUCT($D$8:D49-$H$8:H49) -> 29990
L50: =SUMPRODUCT($D$8:D50-$H$8:H50) -> 29990
L51: =SUMPRODUCT($D$8:D51-$H$8:H51) -> 29990
L52: =SUMPRODUCT($D$8:D52-$H$8:H52) -> 29990
L53: =SUMPRODUCT($D$8:D53-$H$8:H53) -> 29990
L54: =SUMPRODUCT($D$8:D54-$H$8:H54) -> 29990
L55: =SUMPRODUCT($D$8:D55-$H$8:H55) -> 29990
L56: =SUMPRODUCT($D$8:D56-$H$8:H56) -> 29990
L57: =SUMPRODUCT($D$8:D57-$H$8:H57) -> 29990
L58: =SUMPRODUCT($D$8:D58-$H$8:H58) -> 29990
L59: =SUMPRODUCT($D$8:D59-$H$8:H59) -> 29990
L60: =SUMPRODUCT($D$8:D60-$H$8:H60) -> 29990
L61: =SUMPRODUCT($D$8:D61-$H$8:H61) -> 29990
L62: =SUMPRODUCT($D$8:D62-$H$8:H62) -> 29990
L63: =SUMPRODUCT($D$8:D63-$H$8:H63) -> 29990
L64: =SUMPRODUCT($D$8:D64-$H$8:H64) -> 29990
L65: =SUMPRODUCT($D$8:D65-$H$8:H65) -> 29990
L66: =SUMPRODUCT($D$8:D66-$H$8:H66) -> 29990
L67: =SUMPRODUCT($D$8:D67-$H$8:H67) -> 29990
L68: =SUMPRODUCT($D$8:D68-$H$8:H68) -> 29990
L69: =SUMPRODUCT($D$8:D69-$H$8:H69) -> 29990
L70: =SUMPRODUCT($D$8:D70-$H$8:H70) -> 29990
L71: =SUMPRODUCT($D$8:D71-$H$8:H71) -> 29990
L72: =SUMPRODUCT($D$8:D72-$H$8:H72) -> 29990
L73: =SUMPRODUCT($D$8:D73-$H$8:H73) -> 29990
L74: =SUMPRODUCT($D$8:D74-$H$8:H74) -> 29990
L75: =SUMPRODUCT($D$8:D75-$H$8:H75) -> 29990
L76: =SUMPRODUCT($D$8:D76-$H$8:H76) -> 29990
L77: =SUMPRODUCT($D$8:D77-$H$8:H77) -> 29990
L78: =SUMPRODUCT($D$8:D78-$H$8:H78) -> 29990
L79: =SUMPRODUCT($D$8:D79-$H$8:H79) -> 29990
L80: =SUMPRODUCT($D$8:D80-$H$8:H80) -> 29990
L81: =SUMPRODUCT($D$8:D81-$H$8:H81) -> 29990
L82: =SUMPRODUCT($D$8:D82-$H$8:H82) -> 29990
L83: =SUMPRODUCT($D$8:D83-$H$8:H83) -> 29990
L84: =SUMPRODUCT($D$8:D84-$H$8:H84) -> 29990
L85: =SUMPRODUCT($D$8:D85-$H$8:H85) -> 29990
L86: =SUMPRODUCT($D$8:D86-$H$8:H86) -> 29990
L87: =SUMPRODUCT($D$8:D87-$H$8:H87) -> 29990
L88: =SUMPRODUCT($D$8:D88-$H$8:H88) -> 29990
L89: =SUMPRODUCT($D$8:D89-$H$8:H89) -> 29990
L90: =SUMPRODUCT($D$8:D90-$H$8:H90) -> 29990
L91: =SUMPRODUCT($D$8:D91-$H$8:H91) -> 29990
L92: =SUMPRODUCT($D$8:D92-$H$8:H92) -> 29990
L93: =SUMPRODUCT($D$8:D93-$H$8:H93) -> 29990
L94: =SUMPRODUCT($D$8:D94-$H$8:H94) -> 29990
L95: =SUMPRODUCT($D$8:D95-$H$8:H95) -> 29990
L96: =SUMPRODUCT($D$8:D96-$H$8:H96) -> 29990
L97: =SUMPRODUCT($D$8:D97-$H$8:H97) -> 29990
L98: =SUMPRODUCT($D$8:D98-$H$8:H98) -> 29990
L99: =SUMPRODUCT($D$8:D99-$H$8:H99) -> 29990
L100: =SUMPRODUCT($D$8:D100-$H$8:H100) -> 29990
L101: =SUMPRODUCT($D$8:D101-$H$8:H101) -> 29990
L102: =SUMPRODUCT($D$8:D102-$H$8:H102) -> 29990
L103: =SUMPRODUCT($D$8:D103-$H$8:H103) -> 29990
L104: =SUMPRODUCT($D$8:D104-$H$8:H104) -> 29990
L105: =SUMPRODUCT($D$8:D105-$H$8:H105) -> 29990
L106: =SUMPRODUCT($D$8:D106-$H$8:H106) -> 29990
L107: =SUMPRODUCT($D$8:D107-$H$8:H107) -> 29990
L108: =SUMPRODUCT($D$8:D108-$H$8:H108) -> 29990
L109: =SUMPRODUCT($D$8:D109-$H$8:H109) -> 29990
L110: =SUMPRODUCT($D$8:D110-$H$8:H110) -> 29990
L111: =SUMPRODUCT($D$8:D111-$H$8:H111) -> 29990
L112: =SUMPRODUCT($D$8:D112-$H$8:H112) -> 29990
L113: =SUMPRODUCT($D$8:D113-$H$8:H113) -> 29990
L114: =SUMPRODUCT($D$8:D114-$H$8:H114) -> 29990
L115: =SUMPRODUCT($D$8:D115-$H$8:H115) -> 29990
L116: =SUMPRODUCT($D$8:D116-$H$8:H116) -> 29990
L117: =SUMPRODUCT($D$8:D117-$H$8:H117) -> 29990
L118: =SUMPRODUCT($D$8:D118-$H$8:H118) -> 29990
L119: =SUMPRODUCT($D$8:D119-$H$8:H119) -> 29990
L120: =SUMPRODUCT($D$8:D120-$H$8:H120) -> 29990
L121: =SUMPRODUCT($D$8:D121-$H$8:H121) -> 29990
L122: =SUMPRODUCT($D$8:D122-$H$8:H122) -> 29990
L123: =SUMPRODUCT($D$8:D123-$H$8:H123) -> 29990
L124: =SUMPRODUCT($D$8:D124-$H$8:H124) -> 29990
L125: =SUMPRODUCT($D$8:D125-$H$8:H125) -> 29990
L126: =SUMPRODUCT($D$8:D126-$H$8:H126) -> 29990
L127: =SUMPRODUCT($D$8:D127-$H$8:H127) -> 29990
L128: =SUMPRODUCT($D$8:D128-$H$8:H128) -> 29990
L129: =SUMPRODUCT($D$8:D129-$H$8:H129) -> 29990
L130: =SUMPRODUCT($D$8:D130-$H$8:H130) -> 29990
L131: =SUMPRODUCT($D$8:D131-$H$8:H131) -> 29990
L132: =SUMPRODUCT($D$8:D132-$H$8:H132) -> 29990
L133: =SUMPRODUCT($D$8:D133-$H$8:H133) -> 29990
L134: =SUMPRODUCT($D$8:D134-$H$8:H134) -> 29990
L135: =SUMPRODUCT($D$8:D135-$H$8:H135) -> 29990
L136: =SUMPRODUCT($D$8:D136-$H$8:H136) -> 29990
L137: =SUMPRODUCT($D$8:D137-$H$8:H137) -> 29990
L138: =SUMPRODUCT($D$8:D138-$H$8:H138) -> 29990
L139: =SUMPRODUCT($D$8:D139-$H$8:H139) -> 29990
L140: =SUMPRODUCT($D$8:D140-$H$8:H140) -> 29990
L141: =SUMPRODUCT($D$8:D141-$H$8:H141) -> 29990
L142: =SUMPRODUCT($D$8:D142-$H$8:H142) -> 29990
L143: =SUMPRODUCT($D$8:D143-$H$8:H143) -> 29990
L144: =SUMPRODUCT($D$8:D144-$H$8:H144) -> 29990
L145: =SUMPRODUCT($D$8:D145-$H$8:H145) -> 29990
L146: =SUMPRODUCT($D$8:D146-$H$8:H146) -> 29990
L147: =SUMPRODUCT($D$8:D147-$H$8:H147) -> 29990
L148: =SUMPRODUCT($D$8:D148-$H$8:H148) -> 29990
L149: =SUMPRODUCT($D$8:D149-$H$8:H149) -> 29990
L150: =SUMPRODUCT($D$8:D150-$H$8:H150) -> 29990
L151: =SUMPRODUCT($D$8:D151-$H$8:H151) -> 29990
L152: =SUMPRODUCT($D$8:D152-$H$8:H152) -> 29990
L153: =SUMPRODUCT($D$8:D153-$H$8:H153) -> 29990
L154: =SUMPRODUCT($D$8:D154-$H$8:H154) -> 29990
L155: =SUMPRODUCT($D$8:D155-$H$8:H155) -> 29990
L156: =SUMPRODUCT($D$8:D156-$H$8:H156) -> 29990
L157: =SUMPRODUCT($D$8:D157-$H$8:H157) -> 29990
L158: =SUMPRODUCT($D$8:D158-$H$8:H158) -> 29990
L159: =SUMPRODUCT($D$8:D159-$H$8:H159) -> 29990
L160: =SUMPRODUCT($D$8:D160-$H$8:H160) -> 29990
L161: =SUMPRODUCT($D$8:D161-$H$8:H161) -> 29990
L162: =SUMPRODUCT($D$8:D162-$H$8:H162) -> 29990
L163: =SUMPRODUCT($D$8:D163-$H$8:H163) -> 29990
L164: =SUMPRODUCT($D$8:D164-$H$8:H164) -> 29990
L165: =SUMPRODUCT($D$8:D165-$H$8:H165) -> 29990
L166: =SUMPRODUCT($D$8:D166-$H$8:H166) -> 29990
L167: =SUMPRODUCT($D$8:D167-$H$8:H167) -> 29990
L168: =SUMPRODUCT($D$8:D168-$H$8:H168) -> 29990
L169: =SUMPRODUCT($D$8:D169-$H$8:H169) -> 29990
L170: =SUMPRODUCT($D$8:D170-$H$8:H170) -> 29990
L171: =SUMPRODUCT($D$8:D171-$H$8:H171) -> 29990
L172: =SUMPRODUCT($D$8:D172-$H$8:H172) -> 29990
L173: =SUMPRODUCT($D$8:D173-$H$8:H173) -> 29990
L174: =SUMPRODUCT($D$8:D174-$H$8:H174) -> 29990
L175: =SUMPRODUCT($D$8:D175-$H$8:H175) -> 29990
L176: =SUMPRODUCT($D$8:D176-$H$8:H176) -> 29990
L177: =SUMPRODUCT($D$8:D177-$H$8:H177) -> 29990
L178: =SUMPRODUCT($D$8:D178-$H$8:H178) -> 29990
L179: =SUMPRODUCT($D$8:D179-$H$8:H179) -> 29990
L180: =SUMPRODUCT($D$8:D180-$H$8:H180) -> 29990
L181: =SUMPRODUCT($D$8:D181-$H$8:H181) -> 29990
L182: =SUMPRODUCT($D$8:D182-$H$8:H182) -> 29990
L183: =SUMPRODUCT($D$8:D183-$H$8:H183) -> 29990
L184: =SUMPRODUCT($D$8:D184-$H$8:H184) -> 29990
L185: =SUMPRODUCT($D$8:D185-$H$8:H185) -> 29990
L186: =SUMPRODUCT($D$8:D186-$H$8:H186) -> 29990
L187: =SUMPRODUCT($D$8:D187-$H$8:H187) -> 29990
L188: =SUMPRODUCT($D$8:D188-$H$8:H188) -> 29990
L189: =SUMPRODUCT($D$8:D189-$H$8:H189) -> 29990
L190: =SUMPRODUCT($D$8:D190-$H$8:H190) -> 29990
L191: =SUMPRODUCT($D$8:D191-$H$8:H191) -> 29990
L192: =SUMPRODUCT($D$8:D192-$H$8:H192) -> 29990
L193: =SUMPRODUCT($D$8:D193-$H$8:H193) -> 29990
L194: =SUMPRODUCT($D$8:D194-$H$8:H194) -> 29990
L195: =SUMPRODUCT($D$8:D195-$H$8:H195) -> 29990
L196: =SUMPRODUCT($D$8:D196-$H$8:H196) -> 29990
L197: =SUMPRODUCT($D$8:D197-$H$8:H197) -> 29990
L198: =SUMPRODUCT($D$8:D198-$H$8:H198) -> 29990
L199: =SUMPRODUCT($D$8:D199-$H$8:H199) -> 29990
L200: =SUMPRODUCT($D$8:D200-$H$8:H200) -> 29990
L201: =SUMPRODUCT($D$8:D201-$H$8:H201) -> 29990
L202: =SUMPRODUCT($D$8:D202-$H$8:H202) -> 29990
L203: =SUMPRODUCT($D$8:D203-$H$8:H203) -> 29990
L204: =SUMPRODUCT($D$8:D204-$H$8:H204) -> 29990
L205: =SUMPRODUCT($D$8:D205-$H$8:H205) -> 29990
... 1793 more rows

Sheet الوطنية
B2: 6666 | C2: 1918-04-01
A5: رقم الايصال | B5: المبلغ | C5: التاريخ
A6: 1 | B6: 246 | C6: 1900-09-02
A7: 2 | B7: 1567 | C7: 2019-02-01
A8: 3 | B8: 1679 | C8: 2019-03-01
A9: لااا | B9: 1222 | C9: 1915-03-17
A10: 555 | B10: 55 | C10: 1900-02-24

Sheet Sheet2
